Workbook

Sheet SUMMARY
C3: SUMMARY / REKAPITULACIJA
C6: SUM PRICE without VAT / UKUPNA CENA bez PDVa
B7: UKUPNO/ TOTAL | C7: =CENA!I258 -> 0
B11: Napomena I: | C11: štampati samo sheetove (SUMMARY, CENA)
B12: Napomena II: | C12: Na zahtev Naručioca, najkasnije 10 dana nakon zaključenja ugovora, Dobavljač je dužan da dostavi kompletno popunjenu Vendors listu u skladu sa zahtevima datim u delu C tenderskog dosijea, dokument: PROJEKTNI ZADATAK ZA GRAĐEVINSKI MATERIJAL.
C13: unositi cene samo u zeleno obeležen sheet u zelena polja (CENA) samo za pozicije za koje je zbir količina po materijalima različit od 0 (odnosno samo za pozicije za koje postoji količina) od G5 - G266 (jedinične cene)
C14: popuniti zelena polja u VendorsList
B16: Remark I: | C16: print only green sheet (SUMMARY, CENA)
B17: Remark II: | C17: At the request of the Contracting Authority, at the latest 10 days after the conclusion of the contract, the Supplier is obliged to submit the fully completed Vendors list in accordance with the requirements given in part C of the tender dossier, document: TERMS OF REFERNCES FOR THE CONSTRUCTION MATERIAL.
C18: The prices entered only in the green marked sheet in green cells (CENA) only for items for which the sum of the quantity of materials is different than 0 (only for items that have quantity) G5 - G266 (unit price)

Sheet CENA
A2: KOD/ CODE | D2: Opis građevinskog materijala | E2: Description of building materials | F2: Jed. prod./ UNIT | G2: Jedinična prod.cena/ UNIT PRICE | H2: Zbir Količina po materijalima/ SUM QTY | I2: ZBIR UKUPNO PO MATERIJALIMA/ SUM PRICE
A4: 1 | B4: A | D4: OSNOVNI GRAĐEVINSKI MATERIJAL | E4: BASIC BUILDING MATERIALS
A5: 1.1 | B5: O | C5: 1 | D5: Cement za betone do MB 30 | E5: Cement for concrete up to 30 MB | F5: kg | H5: =KORISNICI!H14 -> 49400 | I5: =G5*H5 -> 0
A6: 1.2 | B6: O | C6: 2 | D6: Hidratisani gašeni kreč pripremljen u prahu | E6: Hydrated slaked lime powdered | F6: kg | H6: =KORISNICI!H15 -> 375 | I6: =G6*H6 -> 0
A7: 1.3 | B7: O | C7: 3 | D7: Rebrasto betonsko gvožđe (RA) | E7: Ribbed reinforcement steel | F7: / | H7: / | I7: /
A8: 1.3.1 | C8: A | D8: 10 mm - dužine 12m | E8: 10 mm - length 12m | F8: kg | H8: =KORISNICI!H17 -> 665.64 | I8: =G8*H8 -> 0
A9: 1.3.2 | C9: B | D9: 12 mm - dužine 12m | E9: 12 mm - length 12m | F9: kg | H9: =KORISNICI!H18 -> 2428.52 | I9: 0
A10: 1.3.3 | C10: C | D10: 14 mm - dužine 12m | E10: 14 mm - length 12m | F10: kg | H10: =KORISNICI!H19 -> 182.04 | I10: 0
A11: 1.3.4 | C11: D | D11: 16 mm - dužine 12m | E11: 16 mm - length 12m | F11: kg | H11: =KORISNICI!H20 -> 0 | I11: 0
A12: 1.4 | B12: O | C12: 4 | D12: Glatko betonsko gvožđe (GA) | E12: Glibly reinforcement steel | F12: / | H12: / | I12: /
A13: 1.4.1 | C13: B | D13: 8 mm - dužine 12m | E13: 8 mm - length 12m | F13: kg | H13: =KORISNICI!H22 -> 1445.7 | I13: =G13*H13 -> 0
A14: 1.4.2 | C14: C | D14: 10 mm - dužine 12m | E14: 10 mm - length 12m | F14: kg | H14: =KORISNICI!H23 -> 0 | I14: 0
A15: 1.5 | B15: O | C15: 5 | D15: Armaturna betonska mreža dim. (dxš) 6000 x 2150 = 12,9 m2/kom | E15: Reinforcement mesh dim. (lxw) 6000 x 2150 = 12,9 m2/pcs | F15: / | H15: / | I15: /
A16: 1.5.1 | C16: A | D16: Q84 /4x4/150x150/ | E16: Q84 /4x4/150x150/ | F16: kg | H16: =KORISNICI!H25 -> 0 | I16: =G16*H16 -> 0
A17: 1.5.2 | C17: B | D17: Q131 /5x5/150x150/ | E17: Q131 /5x5/150x150/ | F17: kg | H17: =KORISNICI!H26 -> 136.9 | I17: 0
A18: 1.5.3 | C18: C | D18: Q188 /6x6/150x150/ | E18: Q188 /6x6/150x150/ | F18: kg | H18: =KORISNICI!H27 -> 1381.1 | I18: 0
A19: 1.5.4 | C19: D | D19: Q283 /6x6/100x100/ | E19: Q283 /6x6/100x100/ | F19: kg | H19: =KORISNICI!H28 -> 0 | I19: 0
A20: 1.5.5 | C20: E | D20: Q335 /8x8/150x150/ | E20: Q335 /8x8/150x150/ | F20: kg | H20: =KORISNICI!H29 -> 351.1 | I20: 0
A22: 2 | B22: Z | D22: MATERIJAL ZA ZIDANJE, MALTERISANJE, GLETOVANJE I FARBANJE | E22: MASONRY, PLASTERING FAIRING AND PAINTING MATERIAL
A23: 2.1 | B23: Z | C23: 1 | D23: Giter blok (d/š/v) 250x190x190 mm | E23: Gitter block (l/w/h) 250x190x190 mm | F23: kom/pcs | H23: =KORISNICI!H32 -> 8800 | I23: =G23*H23 -> 0
A24: 2.2 | B24: Z | C24: 2 | D24: Giter polublok (12cm) (d/š/v) 250x120x190mm | E24: Gitter half block (12cm) (l/w/h) 250x120x190mm | F24: kom/pcs | H24: =KORISNICI!H33 -> 3570 | I24: 0
A25: 2.3 | B25: Z | C25: 3 | D25: Opeka puna (d/š/v) 250x120x65 mm | E25: Brick (full-without holes) (l/w/h) 250x120x65 mm | F25: kom/pcs | H25: =KORISNICI!H34 -> 8448 | I25: 0
A26: 2.4 | B26: Z | C26: 4 | D26: Blok od porobetona za pregradni zid (d/š/v) 625x200x200 mm | E26: Aerated concrete block for partition wall (l/w/h) 625x200x200 mm | F26: kom/pcs | H26: =KORISNICI!H35 -> 210 | I26: 0
A27: 2.5 | B27: Z | C27: 5 | D27: Fert nosači (gredice) Dužina nosača je jednaka dužini binora = širina otvora između zidova + 30 cm. Broj gredica = dužina prostorije x 0,40 | E27: Fert beams Boom length is equal to the length of Binor = width of the openings between the walls + 30 cm. Number of beams = length of room x 0.40 | F27: / | H27: / | I27: /
A28: 2.5.1 | C28: A | D28: 0,00-3,90 m | E28: 0,00-3,90 m | F28: m1 | H28: =KORISNICI!H37 -> 124.8 | I28: =G28*H28 -> 0
A29: 2.5.2 | C29: B | D29: 3,91-4,50 m | E29: 3,91-4,50 m | F29: m1 | H29: =KORISNICI!H38 -> 265.5 | I29: 0
A30: 2.5.3 | C30: C | D30: 4,51-4,90 m | E30: 4,51-4,90 m | F30: m1 | H30: =KORISNICI!H39 -> 0 | I30: 0
A31: 2.5.4 | C31: D | D31: 4,91-5,30 m | E31: 4,91-5,30 m | F31: m1 | H31: =KORISNICI!H40 -> 169.6 | I31: 0
A32: 2.5.5 | C32: E | D32: 5,31-5,90 m | E32: 5,31-5,90 m | F32: m1 | H32: =KORISNICI!H41 -> 0 | I32: 0
A33: 2.5.6 | C33: F | D33: 5,91-6,30 m | E33: 5,91-6,30 m | F33: m1 | H33: =KORISNICI!H42 -> 0 | I33: 0
A34: 2.6 | B34: Z | C34: 6 | D34: Fert ispuna (d/š/v) 245x285/275x160 mm | E34: Fert fillings (l/w/h) 245x285/275x160 mm | F34: kom/pcs | H34: =KORISNICI!H43 -> 1764 | I34: 0
A35: 2.7 | B35: Z | C35: 7 | D35: Malter za zidanje Pripremljeno krečno - cementno vezivo | E35: Mortar for masonry Prepared lime - cement binder | F35: kg | H35: =KORISNICI!H44 -> 9280 | I35: 0
A36: 2.8 | B36: Z | C36: 8 | D36: Malter za malterisanje Pripremljeno krečno - cementno vezivo | E36: Mortar for plastering Prepared lime - cement binder | F36: kg | H36: =KORISNICI!H45 -> 35400 | I36: 0
A37: 2.9 | B37: Z | C37: 9 | D37: Krečna glet masa Bezcementna krečna masa za gletovanje | E37: Lime smoothing mass No cement lime compound for smoothing | F37: kg | H37: =KORISNICI!H46 -> 5050 | I37: 0
A38: 2.10 | B38: Z | C38: 10 | D38: Poludisperzivna boja Poludisperziona boja razrediva vodom | E38: Semi dispersion paint | F38: kg | H38: =KORISNICI!H47 -> 1435 | I38: 0
A40: 3 | B40: K | D40: MATERIJAL ZA KROVNU KONSTRUKCIJU, KROVNI POKRIVAČ, OSB I GIPS KARONSKE TABLE | E40: ROOF CONSTRUCTION AND ROOFING MATERIAL, OSB AND PLASTERBOARD TABLE
A41: 3.1 | B41: K | C41: 1 | D41: Presovani glineni crep I klase dimenzija: 400-450x245-275 mm | E41: Pressed clay tiles class 1 dim: 400-450x245-275 mm | F41: kom/pcs | H41: =KORISNICI!H50 -> 65280 | I41: =G41*H41 -> 0
A42: 3.2 | B42: K | C42: 3 | D42: Biber crep I klase dimenzija: 180x380 mm | E42: Biber clay tiles class 1 dim: 180x380 mm | F42: kom/pcs | H42: =KORISNICI!H51 -> 0 | I42: 0
A43: 3.3 | B43: K | C43: 2 | D43: Slemeni crep I klase (žljebnjak) | E43: Ridge clay tiles class 1 | F43: kom/pcs | H43: =KORISNICI!H52 -> 1203 | I43: 0
A44: 3.4 | B44: K | C44: 4 | D44: Paropropusna i vodonepropusna krovna folija kontrola vodene pare iznad termoizolacije | E44: Vapour permeable and waterproof roof sheeting control of water vapor above the insulation | F44: m2 | H44: =KORISNICI!H53 -> 4875 | I44: 0
A45: 3.5 | B45: K | C45: 5 | D45: Staklena mineralna vuna termoizolacija potkrovlja između rogova | E45: Glass Mineral Wool loft insulation between the rafters | F45: / | H45: / | I45: /
A46: 3.5.1 | C46: A | D46: debljina d=10 cm | E46: thickness d=10 cm | F46: m2 | H46: =KORISNICI!H55 -> 333 | I46: =G46*H46 -> 0
A47: 3.5.2 | C47: B | D47: debljina d=12 cm | E47: thickness d=12 cm | F47: m2 | H47: =KORISNICI!H56 -> 468.72 | I47: 0
A48: 3.5.3 | C48: C | D48: debljina d=14 cm | E48: thickness d=14 cm | F48: m2 | H48: =KORISNICI!H57 -> 77.76 | I48: 0
A49: 3.6 | B49: K | C49: 6 | D49: Parna brana kontrola vodene pare ispod termoizolacije | E49: Vapor barrier control of water vapor below the insulation | F49: m2 | H49: =KORISNICI!H58 -> 1275 | I49: 0
A50: 3.7 | B50: K | C50: 7 | D50: Čamova rezana građa različitog preseka dužine 400 cm | E50: Fir lumber of different cross-section length 400 cm | F50: / | H50: / | I50: /
A51: 3.7.1 | C51: A | D51: Rog/Venčanica/Raspinjača 10/12 cm | E51: rafters / wall plate / ridge collar 10/12 cm | F51: m3 | H51: =KORISNICI!H60 -> 4.896 | I51: =G51*H51 -> 0
A52: 3.7.2 | C52: B | D52: Rog/Stub/Grebenjača/Slemenja. 12/14 cm | E52: column / pile / hip rafter / ridge 12/14 cm | F52: m3 | H52: =KORISNICI!H61 -> 7.705 | I52: 0
A53: 3.7.3 | C53: C | D53: Stub/Grebenjača 14/14 cm | E53: column / hip rafter 14/14 cm | F53: m3 | H53: =KORISNICI!H62 -> 0 | I53: 0
A54: 3.7.4 | C54: H | D54: Tavanjače 18/26 cm | E54: attic beams 18/26 cm | F54: m3 | H54: =KORISNICI!H63 -> 0 | I54: 0
A55: 3.8 | B55: K | C55: 8 | D55: Čamova rezana građa različitog preseka dužine 600 cm | E55: Fir lumber of different cross-section length 600 cm | F55: / | H55: / | I55: /
A56: 3.8.1 | C56: A | D56: Rog/Venčanica/Raspinjača 10/12 cm | E56: rafters / wall plate / ridge collar 10/12 cm | F56: m3 | H56: =KORISNICI!H65 -> 53.784 | I56: =G56*H56 -> 0
A57: 3.8.2 | C57: B | D57: Rog/Stub/Grebenjača/Slemenja. 12/14 cm | E57: column / pile / hip rafter / ridge 12/14 cm | F57: m3 | H57: =KORISNICI!H66 -> 14.28 | I57: 0
A58: 3.8.3 | C58: C | D58: Stub/Grebenjača 14/14 cm | E58: column / hip rafter 14/14 cm | F58: m3 | H58: =KORISNICI!H67 -> 0 | I58: 0
A59: 3.8.4 | C59: D | D59: Rožnjača 14/16 cm | E59: Purlin 14/16 cm | F59: m3 | H59: =KORISNICI!H68 -> 0.804 | I59: 0
A60: 3.8.5 | C60: E | D60: Kosnik/Pajanta 10/10 cm | E60: Strut 10/10 cm | F60: m3 | H60: =KORISNICI!H69 -> 0.18 | I60: 0
A61: 3.8.6 | C61: F | D61: Klešta 6/12 cm | E61: Collar tie 6/12 cm | F61: m3 | H61: =KORISNICI!H70 -> 0.559 | I61: 0
A62: 3.8.7 | C62: G | D62: Krovna štafla 5/8 cm | E62: Roof battens 5/8 cm | F62: m3 | H62: =KORISNICI!H71 -> 1.56 | I62: 0
A63: 3.8.8 | C63: H | D63: Tavanjače 18/26 cm | E63: attic beams 18/26 cm | F63: m3 | H63: =KORISNICI!H72 -> 0 | I63: 0
A64: 3.9 | B64: K | C64: 9 | D64: Građevinska daska - fosna 4,8/25/400 cm | E64: Fir board 4,8/25/400 cm | F64: m3 | H64: =KORISNICI!H73 -> 0.72 | I64: 0
A65: 3.10 | B65: K | C65: 10 | D65: Krovna daska od čamove rezane građe 2,4-2,5/15 cm, isporučuje se dužine l=3,0 metra | E65: Roof fir board 2,4-2,5/15 cm, lenght l=3,0 m | F65: m3 | H65: =KORISNICI!H74 -> 28.60668317 | I65: 0
A66: 3.11 | B66: K | C66: 11 | D66: Krovna letva od čamove rezane građe 3 / 5 cm , isporučuje se dužine l=3,0 metra | E66: Fir batten 3 / 5 cm , lenght l=3,0 m | F66: m1 | H66: =KORISNICI!H75 -> 16991 | I66: 0
A67: 3.12 | B67: K | C67: 12 | D67: OSB3 vlagootporne konstruktivne ploče d=18 mm / dim. 2440 x 1220 | E67: OSB3 moisture resistant structural panels d=18 mm / dim. 2440 x 1220 | F67: kom/pcs | H67: =KORISNICI!H76 -> 644 | I67: 0
A68: 3.13 | B68: K | C68: 13 | D68: Standardne gips kartonske ploče - Tip A dimenzije: 1200-1250 x 2000 mm | E68: Standard plasterboard table - Type A dim: 1200-1250 x 2000 mm | F68: kom/pcs | H68: =KORISNICI!H77 -> 361 | I68: 0
A69: 3.14 | B69: K | C69: 14 | D69: Vlagootporne gips kartonske ploče - Tip H2 dimenzije: 1200-1250 x 2000 mm | E69: Moisture resistant Plasterboard - Type H2 dim: 1200-1250 x 2000 mm | F69: kom/pcs | H69: =KORISNICI!H78 -> 168 | I69: 0
A70: 3.15 | B70: K | C70: 15 | D70: Čelični pocinkovani i farbani olučni elementi prečnika: Ø 100 mm dužine 600 cm | E70: Galvanized steel and painted gutter elements diameter: Ø 100 mm length 600 cm | F70: / | H70: / | I70: /
A71: 3.15.1 | C71: A | D71: Horizontalni polukružni | E71: horizontal semicircular gutter | F71: kom/pcs | H71: =KORISNICI!H80 -> 98 | I71: =G71*H71 -> 0
A72: 3.15.2 | C72: B | D72: Vertikalni kružni oluk | E72: Vertical circular gutter | F72: kom/pcs | H72: =KORISNICI!H81 -> 55 | I72: 0
A74: 4 | B74: P | D74: MATERIJAL ZA PODOVE, LAMINAT, PLOČICE I XPS | E74: FLOORING, LAMINATE, TILES AND XPS
A75: 4.1 | B75: P | C75: 1 | D75: Unutrašnje podne keramičke pločice Min. dimenzije pločica: 200x300 mm | E75: Floor tiles for inside Min. tile size: 200x300 mm | F75: m2 | H75: =KORISNICI!H84 -> 349 | I75: =G75*H75 -> 0
A76: 4.2 | B76: P | C76: 2 | D76: Unutrašnje zidne keramičke pločice Min. dimenzije pločica: 200x300 mm | E76: Wall tiles for inside Min. tile size: 200x300 mm | F76: m2 | H76: =KORISNICI!H85 -> 564 | I76: 0
A77: 4.3 | B77: P | C77: 3 | D77: Lepak za keramičke pločice Fleksibilni, polimer-cementni lepak | E77: Glue for ceramic tiles Flexible, polymer-cement glue | F77: kg | H77: =KORISNICI!H86 -> 2675 | I77: 0
A78: 4.4 | B78: P | C78: 4 | D78: Fleksibilna masa za fugovanje Vodoodbojna fug masa na bazi cementa | E78: Flexible mass for grouting Waterproof grout cement based | F78: kg | H78: =KORISNICI!H87 -> 290 | I78: 0
A79: 4.5 | B79: P | C79: 5 | D79: Laminat - jakopresovani (HLP) sa klik sistemom, dezen: hrast natur (prirodni) | E79: Laminate (HLP) with click system, design: oak natural (natural) | F79: m2 | H79: =KORISNICI!H88 -> 782 | I79: 0
A80: 4.6 | B80: P | C80: 6 | D80: Lajsne za laminat od medijapana materijal: medijapan / MDF | E80: Moldings for laminate MDF Material: MDF / MDF | F80: m1 | H80: =KORISNICI!H89 -> 967.2 | I80: 0
A81: 4.7 | B81: P | C81: 7 | D81: Podloga za laminat od polietilenske pene Sunđerasta podloga za laminat | E81: The base for laminate of polyethylene foam Foam base for laminate | F81: m2 | H81: =KORISNICI!H90 -> 891 | I81: 0
A82: 4.8 | B82: P | C82: 8 | D82: Cementni suvi estrih (cementna košuljica). Pripremljeno cementno praškasto vezivo | E82: Cement dry screed (cement screed) Prepared cement powder binder | F82: kg | H82: =KORISNICI!H91 -> 41440 | I82: 0
A83: 4.9 | B83: P | C83: 9 | D83: Građevinska PVC folija Za razdvajanje cementne košuljice od termo izolacije. | E83: PVC foil for construction. To separate the cement screed of thermal insulation. | F83: m2 | H83: =KORISNICI!H92 -> 360 | I83: 0
A84: 4.10 | B84: P | C84: 10 | D84: Stirodur (XPS za izolaciju na podovima) ploča od ekstrudirane polistirenske pene | E84: Stirodur (XPS insulation for floors) panel of extruded polystyrene foam | F84: / | H84: / | I84: /
A85: 4.10.1 | C85: A | D85: debljine d=2 cm | E85: d=2 cm | F85: m2 | H85: =KORISNICI!H94 -> 600 | I85: =G85*H85 -> 0
A86: 4.10.2 | C86: B | D86: debljine d=5 cm | E86: d=5 cm | F86: m2 | H86: =KORISNICI!H95 -> 24 | I86: 0
A88: 5 | B88: F | D88: MATERIJAL ZA IZRADU FASADE | E88: FACADE MATERIAL
A89: 5.1 | B89: F | C89: 1 | D89: EPS za termoizolaciju fasadnih zidova ploča od ekspandiranog polistirena | E89: Thermal insulation for facade walls (EPS) plates made of expanded polystyrene | F89: / | H89: / | I89: /
A90: 5.1.1 | C90: A | D90: debljina d=8 cm | E90: d=8 cm | F90: m2 | H90: =KORISNICI!H99 -> 561 | I90: =G90*H90 -> 0
A91: 5.1.2 | C91: B | D91: debljina d=10 cm | E91: d=10 cm | F91: m2 | H91: =KORISNICI!H100 -> 1900 | I91: 0
A92: 5.1.3 | C92: C | D92: debljina d=12 cm | E92: d=12 cm | F92: m2 | H92: =KORISNICI!H101 -> 0 | I92: 0
A93: 5.1.4 | C93: D | D93: debljina d=14 cm | E93: d=14 cm | F93: m2 | H93: =KORISNICI!H102 -> 0 | I93: 0
A94: 5.2 | B94: F | C94: 2 | D94: GrađevinskI lepak za EPS ploče cementni lepak namenjen za lepljenje ploča od ekspandiranog polistirena (EPS) i armiranje armaturne (rabic) mrežice | E94: Construction glue for EPS plates cement adhesive for gluing plates made of expanded polystyrene (EPS) and reinforcing wire (rabic) net | F94: kg | H94: =KORISNICI!H103 -> 30860 | I94: 0
A95: 5.3 | B95: F | C95: 3 | D95: Armaturna (rabic) staklena mrežica. Visokokvalitetna alkalno postojana staklena mrežica | E95: Reinforcing (rabic) fiberglass mesh High quality alkali resistant fiberglass mesh | F95: m2 | H95: =KORISNICI!H104 -> 3250 | I95: 0
A96: 5.4 | B96: F | C96: 4 | D96: Aktivni predpremaz pre nanošenja tankoslojnog fasadnog maltera. predpremaz za izjednačavanje upijanja - podloga | E96: Active primer before applying the thin-layer plaster primer for the equalization of absorption surface | F96: kg | H96: =KORISNICI!H105 -> 725 | I96: 0
A97: 5.5 | B97: F | C97: 5 | D97: Fasadni tankoslojni akrilni malter Završni malter u pastoznom stanju, namenjen za zaštitu fasadnih zidnih površina | E97: Facade thin-layer acrylic plaster Finishing plaster in paste-like state, intended for the protection of facade wall surfaces | F97: / | H97: / | I97: /
A98: 5.5.1 | C98: A | D98: boja približna RAL 1034 -kajsija | E98: color similar to RAL 1034-apricot | F98: kg | H98: =KORISNICI!H107 -> 3700 | I98: =G98*H98 -> 0
A99: 5.5.2 | C99: B | D99: boja približna RAL 6005 -pastelno zelena | E99: color similar to RAL 6005 pastel-green | F99: kg | H99: =KORISNICI!H108 -> 0 | I99: 0
A100: 5.5.3 | C100: C | D100: boja približna RAL 5023 -pastelno plava | E100: color similar to RAL 5023 pastel-blue | F100: kg | H100: =KORISNICI!H109 -> 0 | I100: 0
A101: 5.5.4 | C101: D | D101: boja približna RAL 3011 -pastelno crvena | E101: color similar to RAL 3011 pastel-red | F101: kg | H101: =KORISNICI!H110 -> 0 | I101: 0
A102: 5.5.5 | C102: E | D102: boja približna RAL 8002 -braon | E102: color similar to RAL 8002 brown | F102: kg | H102: =KORISNICI!H111 -> 5675 | I102: 0
A104: 6 | B104: H | D104: MATERIJAL ZA HIDRO IZOLACIJE | E104: WATERPROOFING MATERIAL
A105: 6.1 | B105: H | C105: 1 | D105: Bitulit (prethodni premaz za hidroizolaciju) Upotrebljava se u isporučenom stanju (hladan postupak ) bez zagrevanja | E105: Bitulit (previous coating for waterproofing) It is used as delivered (cold process) without heating | F105: kg | H105: =KORISNICI!H114 -> 162 | I105: =G105*H105 -> 0
A106: 6.2 | B106: H | C106: 2 | D106: Poliazbitol (hladni premaz za hidroizolaciju) Upotrebljava se u isporučenom stanju (hladan postupak) bez zagrevanja | E106: POLYASBITOL (cold coating for waterproofing) It is used as delivered (cold process) without heating | F106: kg | H106: =KORISNICI!H115 -> 115 | I106: 0
A107: 6.3 | B107: H | C107: 3 | D107: Ter papir Bitumenska hidroizolaciona traka. | E107: Ter paper Bituminous waterproofing tape. | F107: m2 | H107: =KORISNICI!H116 -> 0 | I107: 0
A108: 6.4 | B108: H | C108: 4 | D108: Kondor V-3 (hidroizolaciona traka) Plastomer-bitumenska traka, uložak stakleni voal, debljina: ≥ 3 mm | E108: Condor V-3 (waterproof tape) Plastomer-bituminous tape, glass mat, thickness: ≥ 3 mm | F108: m2 | H108: =KORISNICI!H117 -> 370 | I108: 0
A110: 7 | B110: S | D110: STOLARIJA | E110: DOORS AND WINDOWS
A111: 7.1 | B111: S | C111: 1 | D111: Ulazna vrata od PVC-a (komplet pozicija). boja profila: bela RAL 9003 broj komora: ≥ 5 komora širina x visina (zidarske mere) | E111: Entrance door of PVC (set position) Profile color: white RAL 9003 Number of chambers: ≥ 5 chambers width x height (masonry measures) | F111: / | H111: / | I111: /
A112: 7.1.1 | C112: A | D112: JK 90x210 cm - Leva 90 cm | E112: one wing 90x210 cm - Left 90 cm | F112: kom/pcs | H112: =KORISNICI!H121 -> 8 | I112: =G112*H112 -> 0
A113: 7.1.2 | C113: B | D113: JK 90x210 cm - Desna 90 cm | E113: one wing 90x210 cm - Right 90 cm | F113: kom/pcs | H113: =KORISNICI!H122 -> 7 | I113: 0
A114: 7.1.3 | C114: C | D114: DK 120x210 cm - Leva 90+30 cm | E114: two wings 120x210 cm - Left 90+30 cm | F114: kom/pcs | H114: =KORISNICI!H123 -> 3 | I114: 0
A115: 7.1.4 | C115: D | D115: DK 120x210 cm - Desna 90+30 cm | E115: two wings 120x210 cm - Right 90+30 cm | F115: kom/pcs | H115: =KORISNICI!H124 -> 5 | I115: 0
A116: 7.2 | B116: S | C116: 2 | D116: Prozori od PVC-a (komplet pozicija). Vertikalno i horizontalno otvaranje, boja profila: bela RAL 9003, broj komora: ≥ 5 komora širina x visina (zidarske mere) | E116: Windows made of PVC (set position) Vertical and horizontal opening, color profile: white RAL 9003, the number of chambers: ≥ 5 chambers width x height (masonry measures) | F116: / | H116: / | I116: /
A117: 7.2.1 | C117: A | D117: JK 60x60 cm | E117: one wing 60x60 cm | F117: kom/pcs | H117: =KORISNICI!H126 -> 31 | I117: =G117*H117 -> 0
A118: 7.2.2 | C118: B | D118: JK 80x80 cm | E118: one wing 80x80 cm | F118: kom/pcs | H118: =KORISNICI!H127 -> 9 | I118: 0
A119: 7.2.3 | C119: C | D119: JK 80x120 cm | E119: one wing 80x120 cm | F119: kom/pcs | H119: =KORISNICI!H128 -> 4 | I119: 0
A120: 7.2.4 | C120: D | D120: JK 80x140 cm | E120: one wing 80x140 cm | F120: kom/pcs | H120: =KORISNICI!H129 -> 0 | I120: 0
A121: 7.2.5 | C121: E | D121: JK 100x120 cm | E121: one wing 100x120 cm | F121: kom/pcs | H121: =KORISNICI!H130 -> 8 | I121: 0
A122: 7.2.6 | C122: F | D122: JK 100x140 cm | E122: one wing 100x140 cm | F122: kom/pcs | H122: =KORISNICI!H131 -> 13 | I122: 0
A123: 7.2.7 | C123: G | D123: DK 120x120 cm | E123: two wings 120x120 cm | F123: kom/pcs | H123: =KORISNICI!H132 -> 13 | I123: 0
A124: 7.2.8 | C124: H | D124: DK 120x140 cm | E124: two wings 120x140 cm | F124: kom/pcs | H124: =KORISNICI!H133 -> 8 | I124: 0
A125: 7.2.9 | C125: I | D125: DK 140x120 cm | E125: two wings 140x120 cm | F125: kom/pcs | H125: =KORISNICI!H134 -> 7 | I125: 0
A126: 7.2.10 | C126: J | D126: DK 140x140 cm | E126: two wings 140x140 cm | F126: kom/pcs | H126: =KORISNICI!H135 -> 4 | I126: 0
A127: 7.2.11 | C127: K | D127: DK 160x120 cm | E127: two wings 160x120 cm | F127: kom/pcs | H127: =KORISNICI!H136 -> 7 | I127: 0
A128: 7.2.12 | C128: L | D128: DK 160x140 cm | E128: two wings 160x140 cm | F128: kom/pcs | H128: =KORISNICI!H137 -> 7 | I128: 0
A129: 7.3 | B129: S | C129: 3 | D129: Krovni prozor sa aluminijumskom opšivkom od laminirane i impregnirane čamove građe | E129: Roof window with aluminum flashings of laminated and impregnated fir timber | F129: / | H129: / | I129: /
A130: 7.3.1 | C130: A | D130: dimenzije 66 x 118 (širinaxvisina) | E130: 66 x 118 (width x height) | F130: kom/pcs | H130: =KORISNICI!H139 -> 2 | I130: =G130*H130 -> 0
A131: 7.3.2 | C131: B | D131: dimenzije 78 x 98 (širinaxvisina) | E131: 78 x 98 (width x height) | F131: kom/pcs | H131: =KORISNICI!H140 -> 0 | I131: 0
A132: 7.3.3 | C132: C | D132: dimenzije 78 x 118 (širinaxvisina) | E132: 78 x 118 (width x height) | F132: kom/pcs | H132: =KORISNICI!H141 -> 0 | I132: 0
A133: 7.4 | B133: S | C133: 4 | D133: Balkonska vrata od PVC-a (komplet pozicija). boja profila: bela RAL 9003 broj komora: ≥ 5 komora širina x visina (zidarske mere) | E133: Balcony doors from PVC (set position) Profile color: white RAL 9003 Number of chambers: ≥ 5 chambers width x height (masonry measures) | F133: / | H133: / | I133: /
A134: 7.4.1 | C134: A | D134: JK 90x210 cm - Leva | E134: one wing 90x210 cm - Left | F134: kom/pcs | H134: =KORISNICI!H143 -> 2 | I134: =G134*H134 -> 0
A135: 7.4.2 | C135: B | D135: JK 90x210 cm - Desna | E135: one wing 90x210 cm - Right | F135: kom/pcs | H135: =KORISNICI!H144 -> 2 | I135: 0
A136: 7.4.3 | C136: C | D136: DK 140x210 cm | E136: two wings 140x210 cm | F136: kom/pcs | H136: =KORISNICI!H145 -> 0 | I136: 0
A137: 7.5 | B137: S | C137: 5 | D137: Unutrašnja vrata sa ispunom od kartonskog saća (komplet pozicija). širina x visina (spoljna mera futera) | E137: Internal doors filled with cardboard honeycomb (set position) width x height (external measures footer) | F137: / | H137: / | I137: /
A138: 7.5.1 | C138: A | D138: 70x205 cm - Leva (dubina štoka 0-16 cm) | E138: 70x205 cm - Left (depth door 0-16 cm) | F138: kom/pcs | H138: =KORISNICI!H147 -> 10 | I138: =G138*H138 -> 0
A139: 7.5.2 | C139: B | D139: 70x205 cm - Leva (dubina štoka 16-30 cm) | E139: 70x205 cm - Left (depth door 16-30 cm) | F139: kom/pcs | H139: =KORISNICI!H148 -> 2 | I139: 0
A140: 7.5.3 | C140: C | D140: 70x205 cm - Desna (dubina štoka 0-16 cm) | E140: 70x205 cm - Right (depth door 0-16 cm) | F140: kom/pcs | H140: =KORISNICI!H149 -> 8 | I140: 0
A141: 7.5.4 | C141: D | D141: 70x205 cm - Desna (dubina štoka 16-30 cm) | E141: 70x205 cm - Right (depth door 16-30 cm) | F141: kom/pcs | H141: =KORISNICI!H150 -> 0 | I141: 0
A142: 7.5.5 | C142: E | D142: 80x205 cm - Leva (dubina štoka 0-16 cm) | E142: 80x205 cm - Left (depth door 0-16 cm) | F142: kom/pcs | H142: =KORISNICI!H151 -> 12 | I142: 0
A143: 7.5.6 | C143: F | D143: 80x205 cm - Leva (dubina štoka 16-30 cm) | E143: 80x205 cm - Left (depth door 16-30 cm) | F143: kom/pcs | H143: =KORISNICI!H152 -> 0 | I143: 0
A144: 7.5.7 | C144: G | D144: 80x205 cm - Desna (dubina štoka 0-16 cm) | E144: 80x205 cm - Right (depth door 0-16 cm) | F144: kom/pcs | H144: =KORISNICI!H153 -> 10 | I144: 0
A145: 7.5.8 | C145: H | D145: 80x205 cm - Desna (dubina štoka 16-30 cm) | E145: 80x205 cm - Right (depth door 16-30 cm) | F145: kom/pcs | H145: =KORISNICI!H154 -> 0 | I145: 0
A146: 7.5.9 | C146: I | D146: 90x205 cm - Leva (dubina štoka 0-16 cm) | E146: 90x205 cm - Left (depth door 0-16 cm) | F146: kom/pcs | H146: =KORISNICI!H155 -> 12 | I146: 0
A147: 7.5.10 | C147: J | D147: 90x205 cm - Leva (dubina štoka 16-30 cm) | E147: 90x205 cm - Left (depth door 16-30 cm) | F147: kom/pcs | H147: =KORISNICI!H156 -> 4 | I147: 0
A148: 7.5.11 | C148: K | D148: 90x205 cm - Desna (dubina štoka 0-16 cm) | E148: 90x205 cm - Right (depth door 0-16 cm) | F148: kom/pcs | H148: =KORISNICI!H157 -> 10 | I148: 0
A149: 7.5.12 | C149: L | D149: 90x205 cm - Desna (dubina štoka 16-30 cm) | E149: 90x205 cm - Right (depth door 16-30 cm) | F149: kom/pcs | H149: =KORISNICI!H158 -> 5 | I149: 0
A151: 8 | B151: D | D151: OSTALA OPREMA I MATERIJAL | E151: OTHER EQUIPMENT AND SUPPLIES
A152: 8.1 | B152: D | C152: 1 | D152: Jednostruki dimnjak prečnika Ф 140 mm. Troslojni montažni dimnjački sistem namenjen za sva ložišta i sve vrste goriva, bez ventilacije. Sastavljen je od: dimnjačke cevi od tehničke keramike, izolacije oko cevi dimnjaka od kamene vune minimalne specifične težine 80kg/m3, spoljneg dimnjačkog plašta od lakog betona, vatrostalnog lepka u kartušama, vatrootpornih i gasnonepropusnih atestiranih troslojnih vratanaca , kondenz posude, priključaka za reviziju i ložišta, krovne ploče od staklo betona, nosača tervola i tvrdih tervol ploča za priključke, ventilacione rešetke, dilatacione rozete od nerđajućeg čelika. Spoljna dimenzija dimnjačkog plašta za fi14cm=32x32cm. | E152: A single chimney diameter 140 mm. Three-layer prefabricated chimney system designed for all furnaces and all types of fuel, with no ventilation. It is composed of: chimney pipe of technical ceramics, pipe insulation around the chimney of stone wool minimum specific weight of 80kg/m3, external chimney mantle of lightweight concrete, refractory adhesive in cartouches, fireproof and gas impermeable certified three-layer side door, condensate pots, connectors for the audit and furnaces, roof tiles of glass concrete girders Tervola and hard tervol plate connections, ventilation grilles, rosettes expansion of stainless steel. The external dimensions of the chimney sleeve fi14cm = 32x32cm. | F152: m1 | H152: =KORISNICI!H161 -> 81 | I152: =G152*H152 -> 0
A154: 9 | B154: V | D154: Vodovod Kanalizacija Oprema | E154: WATER SUPPLY AND SEWAGE
D155: Vodovod | E155: WATER SUPPLY
A156: 9.1 | B156: V | C156: 1 | D156: Vodovodne polietilenske cevi PE 100 PN16 za radni pritisak 16 bara (SDR 11) | E156: Water supply polyethylene pipe PE 100 PN16 the working pressure of 16 bar (SDR 11) | F156: / | H156: / | I156: /
A157: 9.1.1 | C157: A | D157: d25 (s min. 2,3) - 3/4" | E157: d25 (s min. 2,3) - 3/4" | F157: m1 | H157: =KORISNICI!H166 -> 0 | I157: =G157*H157 -> 0
A158: 9.1.2 | C158: B | D158: d32 (s min. 3,0) - 1" | E158: d32 (s min. 3,0) - 1" | F158: m1 | H158: =KORISNICI!H167 -> 0 | I158: 0
A159: 9.1.3 | C159: C | D159: d40 (s min. 3,7) - 5/4" | E159: d40 (s min. 3,7) - 5/4" | F159: m1 | H159: =KORISNICI!H168 -> 0 | I159: 0
A160: 9.2 | B160: V | C160: 2 | D160: Vodovodne cevi PP-R 80 PN20 za radni pritisak 20 bara, bele ili zelene boje (materijal: polipropilen-random kapolimer) | E160: Water pipe PP-R 80 PN20 the working pressure of 20 bar, white or green (material: polypropylene random kapolimer) | F160: / | H160: / | I160: /
A161: 9.2.1 | C161: B | D161: d20 (s min. 3,4) - 1/2" | E161: d20 (s min. 3,4) - 1/2" | F161: m1 | H161: =KORISNICI!H170 -> 652 | I161: =G161*H161 -> 0
A162: 9.2.2 | C162: C | D162: d25 (s min. 4,2) - 3/4" | E162: d25 (s min. 4,2) - 3/4" | F162: m1 | H162: =KORISNICI!H171 -> 320 | I162: 0
A163: 9.2.3 | C163: D | D163: d32 (s min. 5,4) - 1" | E163: d32 (s min. 5,4) - 1" | F163: m1 | H163: =KORISNICI!H172 -> 108 | I163: 0
A164: 9.3 | B164: V | C164: 3 | D164: Vodomer sa prirubnicama, holenderima i pripadajućom opremom za montažu, za pritisak do 16 bara | E164: water gauge flanges, unions and associated equipment for assembly, for pressure up to 16 bar | F164: / | H164: / | I164: /
A165: 9.3.1 | C165: A | D165: horizontalni 3/4" | E165: Horizontal 3/4" | F165: kom/pcs | H165: =KORISNICI!H174 -> 0 | I165: =G165*H165 -> 0
A166: 9.3.2 | C166: B | D166: horizontalni 1" | E166: Horizontal 1" | F166: kom/pcs | H166: =KORISNICI!H175 -> 0 | I166: 0
A167: 9.3.3 | C167: C | D167: horizontalni 5/4" | E167: Horizontal 5/4" | F167: kom/pcs | H167: =KORISNICI!H176 -> 0 | I167: 0
A168: 9.4 | B168: V | C168: 4 | D168: Ravni propusni ventil sa ogrankom za pražnjenje | E168: Skip straight valve with a branch drain | F168: / | H168: / | I168: /
A169: 9.4.1 | C169: A | D169: d25 (s min. 2,3) - 3/4" | E169: d25 (s min. 2,3) - 3/4" | F169: kom/pcs | H169: =KORISNICI!H178 -> 18 | I169: =G169*H169 -> 0
A170: 9.4.2 | C170: B | D170: d32 (s min. 3,0) - 1" | E170: d32 (s min. 3,0) - 1" | F170: kom/pcs | H170: =KORISNICI!H179 -> 0 | I170: 0
A171: 9.5 | B171: V | C171: 5 | D171: Propusni ventil za uzidanje sa kapom | E171: Gate valve for the wall with cap | F171: / | H171: / | I171: /
A172: 9.5.1 | C172: A | D172: d20 (s min. 3,4) - 1/2" | E172: d20 (s min. 3,4) - 1/2" | F172: kom/pcs | H172: =KORISNICI!H181 -> 72 | I172: =G172*H172 -> 0
A173: 9.5.2 | C173: B | D173: d25 (s min. 4,2) - 3/4" | E173: d25 (s min. 4,2) - 3/4" | F173: kom/pcs | H173: =KORISNICI!H182 -> 18 | I173: 0
A174: 9.5.3 | C174: C | D174: d32 (s min. 3,0) - 1" | E174: d32 (s min. 3,0) - 1" | F174: kom/pcs | H174: =KORISNICI!H183 -> 9 | I174: 0
A175: 9.6 | B175: V | C175: 6 | D175: Ugaoni "EK" sa kapom | E175: Angle valve "EK" with cap | F175: / | H175: / | I175: /
A176: 9.6.1 | C176: A | D176: d20 (s min. 3,4) - 1/2" | E176: d20 (s min. 3,4) - 1/2" | F176: kom/pcs | H176: =KORISNICI!H185 -> 90 | I176: =G176*H176 -> 0
A177: 9.7 | B177: V | C177: 7 | D177: Termička izolacija vodovodnih cevi -tipa plamaflex ISO ili sl. | E177: Thermal insulation of water pipes-type PLAMAFLEX ISO etc.. | F177: / | H177: / | I177: /
A178: 9.7.1 | C178: B | D178: d20 (22/9) - 1/2" | E178: d20 (22/9) - 1/2" | F178: m1 | H178: =KORISNICI!H187 -> 0 | I178: =G178*H178 -> 0
A179: 9.7.2 | C179: C | D179: d25 (25/9) - 3/4" | E179: d25 (25/9) - 3/4" | F179: m1 | H179: =KORISNICI!H188 -> 0 | I179: 0
A180: 9.7.3 | C180: D | D180: d32 (35/9)- 1" | E180: d32 (35/9)- 1" | F180: m1 | H180: =KORISNICI!H189 -> 0 | I180: 0
D181: Kanalizacija | E181: SEWAGE
A182: 9.8 | B182: V | C182: 8 | D182: PVC kanalizacione cevi SDR 41 / SN4 / PN5 za spoljni razvod, kućna i ulična kanalizacija | E182: PVC sewer pipe SDR 41 / CH4 / PN5 for external distribution, household and street sewage | F182: / | H182: / | I182: /
A183: 9.8.1 | C183: A | D183: d110 (s min. 3,2) dužina 6,0m | E183: d110 (s min. 3,2) length 6,0m | F183: kom/pcs | H183: =KORISNICI!H192 -> 0 | I183: =G183*H183 -> 0
A184: 9.8.2 | C184: B | D184: d160 (s min. 4,0) dužina 6,0m | E184: d160 (s min. 4,0) length 6,0m | F184: kom/pcs | H184: =KORISNICI!H193 -> 9 | I184: 0
A185: 9.9 | B185: V | C185: 9 | D185: Plastične PP cevi SDR 51 / SN2 / PN4 za unutrašnji (kućni) razvod, kućna kanalizacija | E185: Plastic PP pipes SDR 51 / SN2 / PN4 for internal (home) distribution, household sewage | F185: / | H185: / | I185: /
A186: 9.9.1 | C186: A | D186: d50 (s min. 1,8) dužina 3,0m | E186: d50 (s min. 1,8) length 3,0m | F186: kom/pcs | H186: =KORISNICI!H195 -> 68 | I186: =G186*H186 -> 0
A187: 9.9.2 | C187: B | D187: d75 (s min. 1,9) dužina 3,0m | E187: d75 (s min. 1,9) length 3,0m | F187: kom/pcs | H187: =KORISNICI!H196 -> 68 | I187: 0
A188: 9.9.3 | C188: C | D188: d110 (s min. 2,7) dužina 3,0m | E188: d110 (s min. 2,7) length 3,0m | F188: kom/pcs | H188: =KORISNICI!H197 -> 34 | I188: 0
A189: 9.10 | B189: V | C189: 10 | D189: Plitki PE podni slivnik d50 sa horizontalnim odvodom dimenzija 150x150mm | E189: Shallow PE floor drain with horizontal outlet d50 size 150x150mm | F189: kom/pcs | H189: =KORISNICI!H198 -> 17 | I189: 0
A190: 9.11 | B190: V | C190: 11 | D190: Zidni sifoni sa odvodnom mesinganom cevi d32 (mašina za pranje veša i sudova) | E190: Wall siphon with drainage brass tubes d32 (washing machines, dishwashers) | F190: kom/pcs | H190: =KORISNICI!H199 -> 26 | I190: 0
D191: Oprema u kupatilu | E191: BATHROOM EQUPIMENT
A192: 9.12 | B192: V | C192: 12 | D192: WC šolja od keramike I klase | E192: Ceramic toilet bowl class 1 | F192: kom/pcs | H192: =KORISNICI!H201 -> 20 | I192: =G192*H192 -> 0
A193: 9.13 | B193: V | C193: 13 | D193: Niskomontažni plastični predzidni vodokotlić za nisku montažu iznad wc šolje sa plovkom i svim potrebnim delovima za funkcionisanje vodokotlića | E193: Low mounting plastic-wall toilet tank for low installation above the toilet bowl float and all the parts required for the operation of flushing | F193: kom/pcs | H193: =KORISNICI!H202 -> 20 | I193: 0
A194: 9.14 | B194: V | C194: 14 | D194: Umivaonikom sa stubom od keramike I klase | E194: Washbasin with ceramic pillar class 1 | F194: kom/pcs | H194: =KORISNICI!H203 -> 20 | I194: 0
A195: 9.15 | B195: V | C195: 15 | D195: Pravougaona akrilna tuš kada dimenzija 90x90cm sa odlivnim ventilom | E195: Rectangular acrylic shower size 90x90cm with discharge valve | F195: kom/pcs | H195: =KORISNICI!H204 -> 20 | I195: 0
A196: 9.16 | B196: V | C196: 16 | D196: Električni akumulacioni bojler 50l vertikalni grejač 2 kW, napon 230V, kazan izrađen od emajliranog lima, sa pratećim materijalom za ugradnju | E196: Electric storage water heater 50l vertical heater 2 kW, 230V, caldron made ​​of enameled steel, with supporting material for installation | F196: kom/pcs | H196: =KORISNICI!H205 -> 21 | I196: 0
A197: 9.17 | B197: V | C197: 17 | D197: Ogledalo sa etažerom (iznad umivaonika) četvrtasto, min. dimenzija 80x60cm | E197: Mirror with shelf above wash basin square, min. 80x60cm | F197: kom/pcs | H197: =KORISNICI!H206 -> 20 | I197: 0
A198: 9.18 | B198: V | C198: 18 | D198: Baterije (slavine) hromirane baterije za hladnu i toplu vodu | E198: Lever chrome lever for cold and hot water | F198: / | H198: / | I198: /
A199: 9.18.1 | C199: A | D199: za umivaonik jednoručna stojeća | E199: For washbasin single lever basin standing | F199: kom/pcs | H199: =KORISNICI!H208 -> 20 | I199: =G199*H199 -> 0
A200: 9.18.2 | C200: B | D200: za tuš kadu (sa tuš ručicom i tuš crevom) jednoručna sa poniklovanim savitljivim crevom | E200: For shower bath (with shower head and shower hose) Single lever with nickel hoses | F200: kom/pcs | H200: =KORISNICI!H209 -> 20 | I200: 0
A201: 9.18.3 | C201: C | D201: za mašinu za veš i sudove, holender slavina DN20/15, s pripadajućom opremom za ugradnju | E201: for washing machine and dishwasher, union DN20/15 taps, and all the equipment for installation | F201: kom/pcs | H201: =KORISNICI!H210 -> 20 | I201: 0
D202: Oprema u kuhinji | E202: KITCHEN EQUIPMENT
A203: 9.19 | B203: V | C203: 19 | D203: Korito sudopere od "Inox "-a (dvodelno) (izrađeno od plemenitog nerđajućeg čelika) orjenacione dimenzije: 780 x 435 x 150 mm | E203: kitchen sink "Inox" two-part (made of stainless steel) approx. dim: 780 x 435 x 150 mm | F203: kom/pcs | H203: =KORISNICI!H212 -> 14 | I203: =G203*H203 -> 0
A204: 9.20 | B204: V | C204: 20 | D204: Električni akumulacioni bojler 5l za ugradnju iznad sudopere, vertikalni grejač 2 kW, napon 230V, kazan izrađen od plastike sa pratećim materijalom za ugradnju | E204: Electric storage water heater 5l Fitting over the sink, vertical heater 2 kW, 230V, caldron made ​​of plastic with the materials for installation | F204: kom/pcs | H204: =KORISNICI!H213 -> 11 | I204: 0
A205: 9.21 | B205: V | C205: 21 | D205: Baterija za sudoperu jednoručna stojeća hromirana baterija za hladnu i toplu vodu | E205: Sink-standing single lever chrome mixer for hot and cold water | F205: kom/pcs | H205: =KORISNICI!H214 -> 14 | I205: 0
A207: 10 | B207: E | D207: ELEKTRO MATERIJAL I OPREMA | E207: Electrical materials and equipment
D208: Kablovi i kablovski pribor | E208: Electrical cables and cable accessories
A209: 10.1 | B209: E | C209: 1 | D209: Napojni kablovi | E209: Power cables | F209: / | H209: / | I209: /
A210: 10.1.1 | C210: A | D210: X00-A 4x16 mm2 | E210: X00-A 4x16 mm2 | F210: m | H210: =KORISNICI!H219 -> 0 | I210: =G210*H210 -> 0
A211: 10.1.2 | C211: B | D211: PP00-Y 5x6 mm2 | E211: PP00-Y 5x6 mm2 | F211: m | H211: =KORISNICI!H220 -> 0 | I211: 0
... 47 more rows

Sheet KORISNICI
G1: POTPROJEKAT/ SUBPROJECT | J1: SRB 9 | M1: SRB 9 | P1: SRB 9 | S1: SRB 9 | DE1: SRB 9 | DH1: SRB 9 | DK1: SRB 9 | DN1: SRB 9 | DQ1: SRB 9 | DT1: SRB 9 | DW1: SRB 9 | DZ1: SRB 9 | EC1: SRB 9 | EF1: SRB 9 | EI1: SRB 9 | EL1: SRB 9 | EO1: SRB 9 | FV1: SRB 9 | FY1: SRB 9 | GB1: SRB 9 | UM1: SRB 9 | UP1: SRB 9
G2: ID KORISNIKA/ USER ID | I2: =COUNTA(J2:UU2) -> 22 | J2: 1 | M2: 2 | P2: 3 | S2: 5 | DE2: 40 | DH2: 41 | DK2: 42 | DN2: 43 | DQ2: 44 | DT2: 45 | DW2: 46 | DZ2: 47 | EC2: 48 | EF2: 49 | EI2: 50 | EL2: 52 | EO2: 53 | FV2: 64 | FY2: 65 | GB2: 66 | UM2: 195 | UP2: 196
G3: IME KORISNIKA/ NAME | I3: 22 | J3: Radojka | M3: Bogdan | P3: Mirko | S3: Vladimir | DE3: Neđeljka | DH3: Dragan | DK3: Drago | DN3: Mirosla | DQ3: Petar | DT3: Neđa | DW3: Mladen | DZ3: Milorad | EC3: Milan | EF3: Lazo | EI3: Gordana | EL3: Nada | EO3: Mira | FV3: Zoran | FY3: Saša | GB3: Nada | UM3: Mile | UP3: Stevo
G4: PREZIME KORISNIKA/ SURNAME | I4: 22 | J4: Orlić | M4: Cvjetaičanin | P4: Mrkajlović | S4: Dejanović | DE4: Vučinić | DH4: Kosovac | DK4: Miladinović | DN4: Ravić | DQ4: Crnogorac | DT4: Vukelić | DW4: Kleut | DZ4: Božić | EC4: Zagorac | EF4: Tišma | EI4: Kolar | EL4: Marić | EO4: Šavrljuga | FV4: Vukelić | FY4: Gojković | GB4: Krstić | UM4: Adamović | UP4: Miljević
G5: TELEFON KORISNIKA/ PHONE | I5: 22 | J5: 063-891 23 97 | M5: 062-859 17 07 | P5: 063 702 37 03 | S5: 063-780 13 22 | DE5: 063/8777-926 | DH5: 065/4045406 | DK5: 065/85-84-747 | DN5: 060/4082011 | DQ5: 063/891-33-18 | DT5: 062/560-585 | DW5: 063/538834 | DZ5: 0631234567 | EC5: 064/662-5626 | EF5: 063/184-25-17 | EI5: 064/361-62-84 | EL5: 063/8944163 | EO5: 063/8832067 | FV5: 069/2289816 | FY5: 063/380142 | GB5: 063/8968187 | UM5: 063/896-17-85 | UP5: 061/247-40-73
G6: OPŠTINA ISPORUKE/ MUNICIPALITY | I6: 22 | J6: Alibunar | M6: Alibunar | P6: Alibunar | S6: Alibunar | DE6: Inđija | DH6: Inđija | DK6: Inđija | DN6: Inđija | DQ6: Inđija | DT6: Inđija | DW6: Inđija | DZ6: Inđija | EC6: Inđija | EF6: Inđija | EI6: Inđija | EL6: Kovačica | EO6: Kovačica | FV6: Plandište | FY6: Plandište | GB6: Plandište | UM6: Titel | UP6: Titel
G7: MESTO ISPORUKE/ CITY | I7: 22 | J7: Banatski Karlovac | M7: Alibunar | P7: Banatski Karlovac | S7: Banatski Karlovac | DE7: Čortanovci | DH7: Inđija | DK7: Novi Karlovci | DN7: Novi Slankamen | DQ7: Inđija | DT7: Čortanovci | DW7: Inđija | DZ7: Jarkovci | EC7: Inđija | EF7: Novi Slankamen | EI7: Inđija | EL7: Uzdin | EO7: Putnikovo | FV7: Dužine | FY7: Hajdučica | GB7: Hajdučica | UM7: Titel | UP7: Šajkaš
G8: LOKACIJA ISPORUKE/ LOCATION OF DELIVERY | I8: 22 | J8: Knjaza Miloša 11 A | M8: Žarka Zrenjanina br. 149 | P8: Prva nova br. 3 | S8: Vojvode Mišića br. 5-6 | DE8: Radmile Vasiljević Male | DH8: Lastina 12 | DK8: Dunavska 41 | DN8: Karađorđeva 52 | DQ8: Alekse Šantića | DT8: Vikend Naselje bb | DW8: Omladinska 4 | DZ8: Ivana Milutinovića 12 | EC8: Železnička 1 | EF8: Svetosavska 15 | EI8: Brunova 5a | EL8: Kariolan Doban 10 | EO8: Stankova 008 | FV8: Bratstvo i jedinstvo 13 | FY8: Železnička 20 | GB8: Valentova 1 | UM8: Aleksandra Tišme BB | UP8: Ivanjička 42
G9: UKUPNO PO KORISNIKU/ TOTAL BY BENEFICIARY | I9: 22 | J9: =K267 -> 0 | M9: =N267 -> 0 | P9: =Q267 -> 0 | S9: =T267 -> 0 | DE9: =DF267 -> 0 | DH9: =DI267 -> 0 | DK9: =DL267 -> 0 | DN9: =DO267 -> 0 | DQ9: =DR267 -> 0 | DT9: =DU267 -> 0 | DW9: =DX267 -> 0 | DZ9: =EA267 -> 0 | EC9: =ED267 -> 0 | EF9: =EG267 -> 0 | EI9: =EJ267 -> 0 | EL9: =EM267 -> 0 | EO9: =EP267 -> 0 | FV9: =FW267 -> 0 | FY9: =FZ267 -> 0 | GB9: =GC267 -> 0 | UM9: =UN267 -> 0 | UP9: =UQ267 -> 0
A11: KOD/ CODE | D11: Opis građevinskog materijala | E11: Description of building materials | F11: Jed. prod./ UNIT | G11: Jedinična prod.cena/ UNIT PRICE | H11: Zbir Količina po materijalima/ SUM QTY | I11: ZBIR UKUPNO PO MATERIJALIMA/ SUM PRICE | J11: Količina/ QTY | K11: UKUPNO/ TOTAL | M11: Količina/ QTY | N11: UKUPNO/ TOTAL | P11: Količina/ QTY | Q11: UKUPNO/ TOTAL | S11: Količina/ QTY | T11: UKUPNO/ TOTAL | DE11: Količina/ QTY | DF11: UKUPNO/ TOTAL | DH11: Količina/ QTY | DI11: UKUPNO/ TOTAL | DK11: Količina/ QTY | DL11: UKUPNO/ TOTAL | DN11: Količina/ QTY | DO11: UKUPNO/ TOTAL | DQ11: Količina/ QTY | DR11: UKUPNO/ TOTAL | DT11: Količina/ QTY | DU11: UKUPNO/ TOTAL | DW11: Količina/ QTY | DX11: UKUPNO/ TOTAL | DZ11: Količina/ QTY | EA11: UKUPNO/ TOTAL | EC11: Količina/ QTY | ED11: UKUPNO/ TOTAL | EF11: Količina/ QTY | EG11: UKUPNO/ TOTAL | EI11: Količina/ QTY | EJ11: UKUPNO/ TOTAL | EL11: Količina/ QTY | EM11: UKUPNO/ TOTAL | EO11: Količina/ QTY | EP11: UKUPNO/ TOTAL | FV11: Količina/ QTY | FW11: UKUPNO/ TOTAL | FY11: Količina/ QTY | FZ11: UKUPNO/ TOTAL | GB11: Količina/ QTY | GC11: UKUPNO/ TOTAL | UM11: Količina/ QTY | UN11: UKUPNO/ TOTAL | UP11: Količina/ QTY | UQ11: UKUPNO/ TOTAL
J12: =CONCATENATE("ID",J2) -> ID1 | M12: =CONCATENATE("ID",M2) -> ID2 | P12: =CONCATENATE("ID",P2) -> ID3 | S12: =CONCATENATE("ID",S2) -> ID5 | DE12: =CONCATENATE("ID",DE2) -> ID40 | DH12: =CONCATENATE("ID",DH2) -> ID41 | DK12: =CONCATENATE("ID",DK2) -> ID42 | DN12: =CONCATENATE("ID",DN2) -> ID43 | DQ12: =CONCATENATE("ID",DQ2) -> ID44 | DT12: =CONCATENATE("ID",DT2) -> ID45 | DW12: =CONCATENATE("ID",DW2) -> ID46 | DZ12: =CONCATENATE("ID",DZ2) -> ID47 | EC12: =CONCATENATE("ID",EC2) -> ID48 | EF12: =CONCATENATE("ID",EF2) -> ID49 | EI12: =CONCATENATE("ID",EI2) -> ID50 | EL12: =CONCATENATE("ID",EL2) -> ID52 | EO12: =CONCATENATE("ID",EO2) -> ID53 | FV12: =CONCATENATE("ID",FV2) -> ID64 | FY12: =CONCATENATE("ID",FY2) -> ID65 | GB12: =CONCATENATE("ID",GB2) -> ID66 | UM12: =CONCATENATE("ID",UM2) -> ID195 | UP12: =CONCATENATE("ID",UP2) -> ID196
A13: 1 | B13: A | D13: OSNOVNI GRAĐEVINSKI MATERIJAL | E13: BASIC BUILDING MATERIALS
A14: 1.1 | B14: O | C14: 1 | D14: Cement za betone do MB 30 | E14: Cement for concrete up to 30 MB | F14: kg | G14: =CENA!G5 -> 0 | H14: =J14+M14+P14+S14+AQ14+CJ14+DK14+FD14+V14+Y14+AB14+AE14+AH14+AK14+AN14+AT14+AW14+AZ14+BC14+BF14+BI14+BL14+BO14+BR14+BU14+BX14+CA14+CD14+CG14+CM14+CP14+CS14+CV14+CY14+DB14+DE14+DH14+DN14+DQ14+DT14+DW14+DZ14+EC14+EF14+EI14+EL14+EO14+ER14+EU14+EX14+FA14+FG14+FJ14+FM14+FP14+FS14+FV14+FY14+GB14+GE14+GH14+GK14+GN14+GQ14+GT14+GW14+GZ14+HC14+HF14+HI14+HL14+HO14+HR14+HU14+HX14+IA14+ID14+IG14+IJ14+IM14+IP14+IS14+IV14+IY14+JB14+JE14+JH14+JK14+JN14+JQ14+JT14+JW14+JZ14+KC14+KF14+KI14+KL14+KO14+KR14+KU14+KX14+LA14+LD14+LG14+LJ14+LM14+LP14+LS14+LV14+LY14+MB14+ME14+MH14+MK14+MN14+MQ14+MT14+MW14+MZ14+NC14+NF14+NI14+NL14+NO14+NR14+NU14+NX14+OA14+OD14+OG14+OJ14+OM14+OP14+OS14+OV14+OY14+PB14+PE14+PH14+PK14+PN14+PQ14+PT14+PW14+PZ14+QC14+QF14+QI14+QL14+QO14+QR14+QU14+QX14+RA14+RD14+RG14+RJ14+RM14+RP14+RS14+RV14+RY14+SB14+SE14+SH14+SK14+SN14+SQ14+ST14+SW14+SZ14+TC14+TF14+TI14+TL14+TO14+TR14+TU14+TX14+UA14+UD14+UG14+UJ14+UM14+UP14+US14 -> 49400 | I14: =G14*H14 -> 0 | J14: 2000 | K14: =$G14*J14 -> 0 | M14: 3000 | N14: =$G14*M14 -> 0 | Q14: =$G14*P14 -> 0 | S14: 1000 | T14: =$G14*S14 -> 0 | DE14: 3150 | DF14: =$G14*DE14 -> 0 | DH14: 3000 | DI14: =$G14*DH14 -> 0 | DL14: =$G14*DK14 -> 0 | DN14: 4900 | DO14: =$G14*DN14 -> 0 | DQ14: 2000 | DR14: =$G14*DQ14 -> 0 | DT14: 4000 | DU14: =$G14*DT14 -> 0 | DW14: 1000 | DX14: =$G14*DW14 -> 0 | DZ14: 2000 | EA14: =$G14*DZ14 -> 0 | EC14: 2450 | ED14: =$G14*EC14 -> 0 | EF14: 2150 | EG14: =$G14*EF14 -> 0 | EI14: 750 | EJ14: =$G14*EI14 -> 0 | EL14: 6000 | EM14: =$G14*EL14 -> 0 | EP14: =$G14*EO14 -> 0 | FV14: 4000 | FW14: =$G14*FV14 -> 0 | FY14: 2000 | FZ14: =$G14*FY14 -> 0 | GB14: 2000 | GC14: =$G14*GB14 -> 0 | UM14: 2000 | UN14: =$G14*UM14 -> 0 | UP14: 2000 | UQ14: =$G14*UP14 -> 0
A15: 1.2 | B15: O | C15: 2 | D15: Hidratisani gašeni kreč pripremljen u prahu | E15: Hydrated slaked lime powdered | F15: kg | G15: =CENA!G6 -> 0 | H15: =J15+M15+P15+S15+AQ15+CJ15+DK15+FD15+V15+Y15+AB15+AE15+AH15+AK15+AN15+AT15+AW15+AZ15+BC15+BF15+BI15+BL15+BO15+BR15+BU15+BX15+CA15+CD15+CG15+CM15+CP15+CS15+CV15+CY15+DB15+DE15+DH15+DN15+DQ15+DT15+DW15+DZ15+EC15+EF15+EI15+EL15+EO15+ER15+EU15+EX15+FA15+FG15+FJ15+FM15+FP15+FS15+FV15+FY15+GB15+GE15+GH15+GK15+GN15+GQ15+GT15+GW15+GZ15+HC15+HF15+HI15+HL15+HO15+HR15+HU15+HX15+IA15+ID15+IG15+IJ15+IM15+IP15+IS15+IV15+IY15+JB15+JE15+JH15+JK15+JN15+JQ15+JT15+JW15+JZ15+KC15+KF15+KI15+KL15+KO15+KR15+KU15+KX15+LA15+LD15+LG15+LJ15+LM15+LP15+LS15+LV15+LY15+MB15+ME15+MH15+MK15+MN15+MQ15+MT15+MW15+MZ15+NC15+NF15+NI15+NL15+NO15+NR15+NU15+NX15+OA15+OD15+OG15+OJ15+OM15+OP15+OS15+OV15+OY15+PB15+PE15+PH15+PK15+PN15+PQ15+PT15+PW15+PZ15+QC15+QF15+QI15+QL15+QO15+QR15+QU15+QX15+RA15+RD15+RG15+RJ15+RM15+RP15+RS15+RV15+RY15+SB15+SE15+SH15+SK15+SN15+SQ15+ST15+SW15+SZ15+TC15+TF15+TI15+TL15+TO15+TR15+TU15+TX15+UA15+UD15+UG15+UJ15+UM15+UP15+US15 -> 375 | I15: =G15*H15 -> 0 | K15: =$G15*J15 -> 0 | N15: 0 | Q15: =$G15*P15 -> 0 | T15: =$G15*S15 -> 0 | DE15: 0 | DF15: =$G15*DE15 -> 0 | DH15: 0 | DI15: =$G15*DH15 -> 0 | DL15: =$G15*DK15 -> 0 | DN15: 0 | DO15: =$G15*DN15 -> 0 | DR15: =$G15*DQ15 -> 0 | DT15: 0 | DU15: =$G15*DT15 -> 0 | DW15: 0 | DX15: =$G15*DW15 -> 0 | DZ15: 0 | EA15: =$G15*DZ15 -> 0 | EC15: 375 | ED15: =$G15*EC15 -> 0 | EF15: 0 | EG15: 0 | EI15: 0 | EJ15: 0 | EM15: =$G15*EL15 -> 0 | EP15: =$G15*EO15 -> 0 | FW15: =$G15*FV15 -> 0 | FZ15: =$G15*FY15 -> 0 | GC15: =$G15*GB15 -> 0 | UN15: =$G15*UM15 -> 0 | UQ15: =$G15*UP15 -> 0
A16: 1.3 | B16: O | C16: 3 | D16: Rebrasto betonsko gvožđe (RA) | E16: Ribbed reinforcement steel | F16: / | G16: / | H16: / | I16: / | J16: / | K16: / | M16: / | N16: / | P16: / | Q16: / | S16: / | T16: / | DE16: / | DF16: / | DH16: / | DI16: / | DK16: / | DL16: / | DN16: / | DO16: / | DQ16: / | DR16: / | DT16: / | DU16: / | DW16: / | DX16: / | DZ16: / | EA16: / | EC16: / | ED16: / | EF16: / | EG16: / | EI16: / | EJ16: / | EL16: / | EM16: / | EO16: / | EP16: / | FV16: / | FW16: / | FY16: / | FZ16: / | GB16: / | GC16: / | UM16: / | UN16: / | UP16: / | UQ16: /
A17: 1.3.1 | C17: A | D17: 10 mm - dužine 12m | E17: 10 mm - length 12m | F17: kg | G17: =CENA!G8 -> 0 | H17: =J17+M17+P17+S17+AQ17+CJ17+DK17+FD17+V17+Y17+AB17+AE17+AH17+AK17+AN17+AT17+AW17+AZ17+BC17+BF17+BI17+BL17+BO17+BR17+BU17+BX17+CA17+CD17+CG17+CM17+CP17+CS17+CV17+CY17+DB17+DE17+DH17+DN17+DQ17+DT17+DW17+DZ17+EC17+EF17+EI17+EL17+EO17+ER17+EU17+EX17+FA17+FG17+FJ17+FM17+FP17+FS17+FV17+FY17+GB17+GE17+GH17+GK17+GN17+GQ17+GT17+GW17+GZ17+HC17+HF17+HI17+HL17+HO17+HR17+HU17+HX17+IA17+ID17+IG17+IJ17+IM17+IP17+IS17+IV17+IY17+JB17+JE17+JH17+JK17+JN17+JQ17+JT17+JW17+JZ17+KC17+KF17+KI17+KL17+KO17+KR17+KU17+KX17+LA17+LD17+LG17+LJ17+LM17+LP17+LS17+LV17+LY17+MB17+ME17+MH17+MK17+MN17+MQ17+MT17+MW17+MZ17+NC17+NF17+NI17+NL17+NO17+NR17+NU17+NX17+OA17+OD17+OG17+OJ17+OM17+OP17+OS17+OV17+OY17+PB17+PE17+PH17+PK17+PN17+PQ17+PT17+PW17+PZ17+QC17+QF17+QI17+QL17+QO17+QR17+QU17+QX17+RA17+RD17+RG17+RJ17+RM17+RP17+RS17+RV17+RY17+SB17+SE17+SH17+SK17+SN17+SQ17+ST17+SW17+SZ17+TC17+TF17+TI17+TL17+TO17+TR17+TU17+TX17+UA17+UD17+UG17+UJ17+UM17+UP17+US17 -> 665.64 | I17: =G17*H17 -> 0 | K17: =$G17*J17 -> 0 | L17: =J17/$UW$17 -> 0 | M17: 123.84 | N17: =$G17*M17 -> 0 | O17: =M17/$UW$17 -> 16 | Q17: =$G17*P17 -> 0 | R17: =P17/$UW$17 -> 0 | T17: =$G17*S17 -> 0 | U17: =S17/$UW$17 -> 0 | DE17: 0 | DF17: =$G17*DE17 -> 0 | DG17: =DE17/$UW$17 -> 0 | DH17: 0 | DI17: =$G17*DH17 -> 0 | DJ17: =DH17/$UW$17 -> 0 | DL17: =$G17*DK17 -> 0 | DM17: =DK17/$UW$17 -> 0 | DN17: 0 | DO17: =$G17*DN17 -> 0 | DP17: =DN17/$UW$17 -> 0 | DQ17: 232.2 | DR17: =$G17*DQ17 -> 0 | DS17: =DQ17/$UW$17 -> 30 | DT17: 0 | DU17: =$G17*DT17 -> 0 | DV17: =DT17/$UW$17 -> 0 | DW17: 0 | DX17: =$G17*DW17 -> 0 | DY17: =DW17/$UW$17 -> 0 | DZ17: 0 | EA17: =$G17*DZ17 -> 0 | EB17: =DZ17/$UW$17 -> 0 | ED17: =$G17*EC17 -> 0 | EE17: =EC17/$UW$17 -> 0 | EF17: 0 | EG17: =$G17*EF17 -> 0 | EH17: =EF17/$UW$17 -> 0 | EI17: 0 | EJ17: =$G17*EI17 -> 0 | EK17: =EI17/$UW$17 -> 0 | EL17: 170.28 | EM17: =$G17*EL17 -> 0 | EN17: =EL17/$UW$17 -> 22 | EP17: =$G17*EO17 -> 0 | EQ17: =EO17/$UW$17 -> 0 | FV17: 139.32 | FW17: =$G17*FV17 -> 0 | FX17: =FV17/$UW$17 -> 18 | FZ17: =$G17*FY17 -> 0 | GA17: =FY17/$UW$17 -> 0 | GC17: =$G17*GB17 -> 0 | GD17: =GB17/$UW$17 -> 0 | UN17: =$G17*UM17 -> 0 | UO17: =UM17/$UW$17 -> 0 | UQ17: =$G17*UP17 -> 0 | UR17: =UP17/$UW$17 -> 0 | UW17: 7.74
A18: 1.3.2 | C18: B | D18: 12 mm - dužine 12m | E18: 12 mm - length 12m | F18: kg | G18: =CENA!G9 -> 0 | H18: 2428.52 | I18: 0 | J18: 178.24 | K18: =$G18*J18 -> 0 | L18: =J18/$UW$18 -> 16 | M18: 155.96 | N18: 0 | O18: =M18/$UW$18 -> 14 | Q18: =$G18*P18 -> 0 | R18: =P18/$UW$18 -> 0 | S18: 111.4 | T18: =$G18*S18 -> 0 | U18: =S18/$UW$18 -> 10 | DE18: 189.38 | DF18: =$G18*DE18 -> 0 | DG18: =DE18/$UW$18 -> 17 | DH18: 334.2 | DI18: =$G18*DH18 -> 0 | DJ18: =DH18/$UW$18 -> 30 | DL18: =$G18*DK18 -> 0 | DM18: =DK18/$UW$18 -> 0 | DN18: 278.5 | DO18: =$G18*DN18 -> 0 | DP18: =DN18/$UW$18 -> 25 | DR18: =$G18*DQ18 -> 0 | DS18: =DQ18/$UW$18 -> 0 | DT18: 278.5 | DU18: =$G18*DT18 -> 0 | DV18: =DT18/$UW$18 -> 25 | DW18: 0 | DX18: =$G18*DW18 -> 0 | DY18: =DW18/$UW$18 -> 0 | DZ18: 0 | EA18: =$G18*DZ18 -> 0 | EB18: =DZ18/$UW$18 -> 0 | EC18: 167.1 | ED18: =$G18*EC18 -> 0 | EE18: =EC18/$UW$18 -> 15 | EF18: 245.08 | EG18: 0 | EH18: =EF18/$UW$18 -> 22 | EI18: 133.68 | EJ18: 0 | EK18: =EI18/$UW$18 -> 12 | EM18: =$G18*EL18 -> 0 | EN18: =EL18/$UW$18 -> 0 | EP18: =$G18*EO18 -> 0 | EQ18: =EO18/$UW$18 -> 0 | FV18: 178.24 | FW18: =$G18*FV18 -> 0 | FX18: =FV18/$UW$18 -> 16 | FZ18: =$G18*FY18 -> 0 | GA18: =FY18/$UW$18 -> 0 | GC18: =$G18*GB18 -> 0 | GD18: =GB18/$UW$18 -> 0 | UM18: 178.24 | UN18: =$G18*UM18 -> 0 | UO18: =UM18/$UW$18 -> 16 | UQ18: =$G18*UP18 -> 0 | UR18: =UP18/$UW$18 -> 0 | UW18: 11.14
A19: 1.3.3 | C19: C | D19: 14 mm - dužine 12m | E19: 14 mm - length 12m | F19: kg | G19: =CENA!G10 -> 0 | H19: 182.04 | I19: 0 | K19: =$G19*J19 -> 0 | L19: =J19/$UW$19 -> 0 | N19: 0 | O19: =M19/$UW$19 -> 0 | Q19: =$G19*P19 -> 0 | R19: =P19/$UW$19 -> 0 | T19: =$G19*S19 -> 0 | U19: =S19/$UW$19 -> 0 | DE19: 0 | DF19: =$G19*DE19 -> 0 | DG19: =DE19/$UW$19 -> 0 | DH19: 0 | DI19: =$G19*DH19 -> 0 | DJ19: =DH19/$UW$19 -> 0 | DL19: =$G19*DK19 -> 0 | DM19: =DK19/$UW$19 -> 0 | DN19: 0 | DO19: =$G19*DN19 -> 0 | DP19: =DN19/$UW$19 -> 0 | DR19: =$G19*DQ19 -> 0 | DS19: =DQ19/$UW$19 -> 0 | DT19: 0 | DU19: =$G19*DT19 -> 0 | DV19: =DT19/$UW$19 -> 0 | DW19: 0 | DX19: =$G19*DW19 -> 0 | DY19: =DW19/$UW$19 -> 0 | DZ19: 0 | EA19: =$G19*DZ19 -> 0 | EB19: =DZ19/$UW$19 -> 0 | ED19: =$G19*EC19 -> 0 | EE19: =EC19/$UW$19 -> 0 | EF19: 0 | EG19: 0 | EH19: =EF19/$UW$19 -> 0 | EI19: 0 | EJ19: 0 | EK19: =EI19/$UW$19 -> 0 | EL19: 182.04 | EM19: =$G19*EL19 -> 0 | EN19: =EL19/$UW$19 -> 12 | EP19: =$G19*EO19 -> 0 | EQ19: =EO19/$UW$19 -> 0 | FW19: =$G19*FV19 -> 0 | FX19: =FV19/$UW$19 -> 0 | FZ19: =$G19*FY19 -> 0 | GA19: =FY19/$UW$19 -> 0 | GC19: =$G19*GB19 -> 0 | GD19: =GB19/$UW$19 -> 0 | UN19: =$G19*UM19 -> 0 | UO19: =UM19/$UW$19 -> 0 | UQ19: =$G19*UP19 -> 0 | UR19: =UP19/$UW$19 -> 0 | UW19: 15.17
A20: 1.3.4 | C20: D | D20: 16 mm - dužine 12m | E20: 16 mm - length 12m | F20: kg | G20: =CENA!G11 -> 0 | H20: 0 | I20: 0 | K20: =$G20*J20 -> 0 | L20: =J20/$UW$20 -> 0 | N20: 0 | O20: =M20/$UW$20 -> 0 | Q20: =$G20*P20 -> 0 | R20: =P20/$UW$20 -> 0 | T20: =$G20*S20 -> 0 | U20: =S20/$UW$20 -> 0 | DE20: 0 | DF20: =$G20*DE20 -> 0 | DG20: =DE20/$UW$20 -> 0 | DH20: 0 | DI20: =$G20*DH20 -> 0 | DJ20: =DH20/$UW$20 -> 0 | DL20: =$G20*DK20 -> 0 | DM20: =DK20/$UW$20 -> 0 | DN20: 0 | DO20: =$G20*DN20 -> 0 | DP20: =DN20/$UW$20 -> 0 | DR20: =$G20*DQ20 -> 0 | DS20: =DQ20/$UW$20 -> 0 | DT20: 0 | DU20: =$G20*DT20 -> 0 | DV20: =DT20/$UW$20 -> 0 | DW20: 0 | DX20: =$G20*DW20 -> 0 | DY20: =DW20/$UW$20 -> 0 | DZ20: 0 | EA20: =$G20*DZ20 -> 0 | EB20: =DZ20/$UW$20 -> 0 | ED20: =$G20*EC20 -> 0 | EE20: =EC20/$UW$20 -> 0 | EF20: 0 | EG20: 0 | EH20: =EF20/$UW$20 -> 0 | EI20: 0 | EJ20: 0 | EK20: =EI20/$UW$20 -> 0 | EM20: =$G20*EL20 -> 0 | EN20: =EL20/$UW$20 -> 0 | EP20: =$G20*EO20 -> 0 | EQ20: =EO20/$UW$20 -> 0 | FW20: =$G20*FV20 -> 0 | FX20: =FV20/$UW$20 -> 0 | FZ20: =$G20*FY20 -> 0 | GA20: =FY20/$UW$20 -> 0 | GC20: =$G20*GB20 -> 0 | GD20: =GB20/$UW$20 -> 0 | UN20: =$G20*UM20 -> 0 | UO20: =UM20/$UW$20 -> 0 | UQ20: =$G20*UP20 -> 0 | UR20: =UP20/$UW$20 -> 0 | UW20: 19.81
A21: 1.4 | B21: O | C21: 4 | D21: Glatko betonsko gvožđe (GA) | E21: Glibly reinforcement steel | F21: / | G21: / | H21: / | I21: / | J21: / | K21: / | M21: / | N21: / | P21: / | Q21: / | S21: / | T21: / | DE21: / | DF21: / | DH21: / | DI21: / | DK21: / | DL21: / | DN21: / | DO21: / | DQ21: / | DR21: / | DT21: / | DU21: / | DW21: / | DX21: / | DZ21: / | EA21: / | EC21: / | ED21: / | EF21: / | EG21: / | EI21: / | EJ21: / | EL21: / | EM21: / | EO21: / | EP21: / | FV21: / | FW21: / | FY21: / | FZ21: / | GB21: / | GC21: / | UM21: / | UN21: / | UP21: / | UQ21: /
A22: 1.4.1 | C22: B | D22: 8 mm - dužine 12m | E22: 8 mm - length 12m | F22: kg | G22: =CENA!G13 -> 0 | H22: =J22+M22+P22+S22+AQ22+CJ22+DK22+FD22+V22+Y22+AB22+AE22+AH22+AK22+AN22+AT22+AW22+AZ22+BC22+BF22+BI22+BL22+BO22+BR22+BU22+BX22+CA22+CD22+CG22+CM22+CP22+CS22+CV22+CY22+DB22+DE22+DH22+DN22+DQ22+DT22+DW22+DZ22+EC22+EF22+EI22+EL22+EO22+ER22+EU22+EX22+FA22+FG22+FJ22+FM22+FP22+FS22+FV22+FY22+GB22+GE22+GH22+GK22+GN22+GQ22+GT22+GW22+GZ22+HC22+HF22+HI22+HL22+HO22+HR22+HU22+HX22+IA22+ID22+IG22+IJ22+IM22+IP22+IS22+IV22+IY22+JB22+JE22+JH22+JK22+JN22+JQ22+JT22+JW22+JZ22+KC22+KF22+KI22+KL22+KO22+KR22+KU22+KX22+LA22+LD22+LG22+LJ22+LM22+LP22+LS22+LV22+LY22+MB22+ME22+MH22+MK22+MN22+MQ22+MT22+MW22+MZ22+NC22+NF22+NI22+NL22+NO22+NR22+NU22+NX22+OA22+OD22+OG22+OJ22+OM22+OP22+OS22+OV22+OY22+PB22+PE22+PH22+PK22+PN22+PQ22+PT22+PW22+PZ22+QC22+QF22+QI22+QL22+QO22+QR22+QU22+QX22+RA22+RD22+RG22+RJ22+RM22+RP22+RS22+RV22+RY22+SB22+SE22+SH22+SK22+SN22+SQ22+ST22+SW22+SZ22+TC22+TF22+TI22+TL22+TO22+TR22+TU22+TX22+UA22+UD22+UG22+UJ22+UM22+UP22+US22 -> 1445.7 | I22: =G22*H22 -> 0 | J22: 56.88 | K22: =$G22*J22 -> 0 | L22: =J22/$UW$22 -> 12 | M22: 142.2 | N22: =$G22*M22 -> 0 | O22: =M22/$UW$22 -> 30 | Q22: =$G22*P22 -> 0 | R22: =P22/$UW$22 -> 0 | S22: 47.4 | T22: =$G22*S22 -> 0 | U22: =S22/$UW$22 -> 10 | DE22: 61.62 | DF22: =$G22*DE22 -> 0 | DG22: =DE22/$UW$22 -> 13 | DH22: 189.6 | DI22: =$G22*DH22 -> 0 | DJ22: =DH22/$UW$22 -> 40 | DL22: =$G22*DK22 -> 0 | DM22: =DK22/$UW$22 -> 0 | DN22: 118.5 | DO22: =$G22*DN22 -> 0 | DP22: =DN22/$UW$22 -> 25 | DQ22: 118.5 | DR22: =$G22*DQ22 -> 0 | DS22: =DQ22/$UW$22 -> 25 | DT22: 118.5 | DU22: =$G22*DT22 -> 0 | DV22: =DT22/$UW$22 -> 25 | DW22: 0 | DX22: =$G22*DW22 -> 0 | DY22: =DW22/$UW$22 -> 0 | DZ22: 0 | EA22: =$G22*DZ22 -> 0 | EB22: =DZ22/$UW$22 -> 0 | EC22: 71.1 | ED22: =$G22*EC22 -> 0 | EE22: =EC22/$UW$22 -> 15 | EF22: 104.28 | EG22: =$G22*EF22 -> 0 | EH22: =EF22/$UW$22 -> 22 | EI22: 56.88 | EJ22: =$G22*EI22 -> 0 | EK22: =EI22/$UW$22 -> 12 | EL22: 142.2 | EM22: =$G22*EL22 -> 0 | EN22: =EL22/$UW$22 -> 30 | EP22: =$G22*EO22 -> 0 | EQ22: =EO22/$UW$22 -> 0 | FV22: 142.2 | FW22: =$G22*FV22 -> 0 | FX22: =FV22/$UW$22 -> 30 | FZ22: =$G22*FY22 -> 0 | GA22: =FY22/$UW$22 -> 0 | GC22: =$G22*GB22 -> 0 | GD22: =GB22/$UW$22 -> 0 | UM22: 75.84 | UN22: =$G22*UM22 -> 0 | UO22: =UM22/$UW$22 -> 16 | UQ22: =$G22*UP22 -> 0 | UR22: =UP22/$UW$22 -> 0 | UW22: 4.74
A23: 1.4.2 | C23: C | D23: 10 mm - dužine 12m | E23: 10 mm - length 12m | F23: kg | G23: =CENA!G14 -> 0 | H23: 0 | I23: 0 | K23: =$G23*J23 -> 0 | L23: =J23/$UW$23 -> 0 | N23: 0 | O23: =M23/$UW$23 -> 0 | Q23: =$G23*P23 -> 0 | R23: =P23/$UW$23 -> 0 | T23: =$G23*S23 -> 0 | U23: =S23/$UW$23 -> 0 | DE23: 0 | DF23: =$G23*DE23 -> 0 | DG23: =DE23/$UW$23 -> 0 | DH23: 0 | DI23: =$G23*DH23 -> 0 | DJ23: =DH23/$UW$23 -> 0 | DL23: =$G23*DK23 -> 0 | DM23: =DK23/$UW$23 -> 0 | DN23: 0 | DO23: =$G23*DN23 -> 0 | DP23: =DN23/$UW$23 -> 0 | DR23: =$G23*DQ23 -> 0 | DS23: =DQ23/$UW$23 -> 0 | DT23: 0 | DU23: =$G23*DT23 -> 0 | DV23: =DT23/$UW$23 -> 0 | DW23: 0 | DX23: =$G23*DW23 -> 0 | DY23: =DW23/$UW$23 -> 0 | DZ23: 0 | EA23: =$G23*DZ23 -> 0 | EB23: =DZ23/$UW$23 -> 0 | ED23: =$G23*EC23 -> 0 | EE23: =EC23/$UW$23 -> 0 | EF23: 0 | EG23: 0 | EH23: =EF23/$UW$23 -> 0 | EI23: 0 | EJ23: 0 | EK23: =EI23/$UW$23 -> 0 | EM23: =$G23*EL23 -> 0 | EN23: =EL23/$UW$23 -> 0 | EP23: =$G23*EO23 -> 0 | EQ23: =EO23/$UW$23 -> 0 | FW23: =$G23*FV23 -> 0 | FX23: =FV23/$UW$23 -> 0 | FZ23: =$G23*FY23 -> 0 | GA23: =FY23/$UW$23 -> 0 | GC23: =$G23*GB23 -> 0 | GD23: =GB23/$UW$23 -> 0 | UN23: =$G23*UM23 -> 0 | UO23: =UM23/$UW$23 -> 0 | UQ23: =$G23*UP23 -> 0 | UR23: =UP23/$UW$23 -> 0 | UW23: 7.4
A24: 1.5 | B24: O | C24: 5 | D24: Armaturna betonska mreža dim. (dxš) 6000 x 2150 = 12,9 m2/kom | E24: Reinforcement mesh dim. (lxw) 6000 x 2150 = 12,9 m2/pcs | F24: / | G24: / | H24: / | I24: / | J24: / | K24: / | M24: / | N24: / | P24: / | Q24: / | S24: / | T24: / | DE24: / | DF24: / | DH24: / | DI24: / | DK24: / | DL24: / | DN24: / | DO24: / | DQ24: / | DR24: / | DT24: / | DU24: / | DW24: / | DX24: / | DZ24: / | EA24: / | EC24: / | ED24: / | EF24: / | EG24: / | EI24: / | EJ24: / | EL24: / | EM24: / | EO24: / | EP24: / | FV24: / | FW24: / | FY24: / | FZ24: / | GB24: / | GC24: / | UM24: / | UN24: / | UP24: / | UQ24: /
A25: 1.5.1 | C25: A | D25: Q84 /4x4/150x150/ | E25: Q84 /4x4/150x150/ | F25: kg | G25: =CENA!G16 -> 0 | H25: =J25+M25+P25+S25+AQ25+CJ25+DK25+FD25+V25+Y25+AB25+AE25+AH25+AK25+AN25+AT25+AW25+AZ25+BC25+BF25+BI25+BL25+BO25+BR25+BU25+BX25+CA25+CD25+CG25+CM25+CP25+CS25+CV25+CY25+DB25+DE25+DH25+DN25+DQ25+DT25+DW25+DZ25+EC25+EF25+EI25+EL25+EO25+ER25+EU25+EX25+FA25+FG25+FJ25+FM25+FP25+FS25+FV25+FY25+GB25+GE25+GH25+GK25+GN25+GQ25+GT25+GW25+GZ25+HC25+HF25+HI25+HL25+HO25+HR25+HU25+HX25+IA25+ID25+IG25+IJ25+IM25+IP25+IS25+IV25+IY25+JB25+JE25+JH25+JK25+JN25+JQ25+JT25+JW25+JZ25+KC25+KF25+KI25+KL25+KO25+KR25+KU25+KX25+LA25+LD25+LG25+LJ25+LM25+LP25+LS25+LV25+LY25+MB25+ME25+MH25+MK25+MN25+MQ25+MT25+MW25+MZ25+NC25+NF25+NI25+NL25+NO25+NR25+NU25+NX25+OA25+OD25+OG25+OJ25+OM25+OP25+OS25+OV25+OY25+PB25+PE25+PH25+PK25+PN25+PQ25+PT25+PW25+PZ25+QC25+QF25+QI25+QL25+QO25+QR25+QU25+QX25+RA25+RD25+RG25+RJ25+RM25+RP25+RS25+RV25+RY25+SB25+SE25+SH25+SK25+SN25+SQ25+ST25+SW25+SZ25+TC25+TF25+TI25+TL25+TO25+TR25+TU25+TX25+UA25+UD25+UG25+UJ25+UM25+UP25+US25 -> 0 | I25: =G25*H25 -> 0 | K25: =$G25*J25 -> 0 | L25: =J25/$UW$25 -> 0 | N25: =$G25*M25 -> 0 | O25: =M25/$UW$25 -> 0 | Q25: =$G25*P25 -> 0 | R25: =P25/$UW$25 -> 0 | T25: =$G25*S25 -> 0 | U25: =S25/$UW$25 -> 0 | DE25: 0 | DF25: =$G25*DE25 -> 0 | DG25: =DE25/$UW$25 -> 0 | DH25: 0 | DI25: =$G25*DH25 -> 0 | DJ25: =DH25/$UW$25 -> 0 | DL25: =$G25*DK25 -> 0 | DM25: =DK25/$UW$25 -> 0 | DN25: 0 | DO25: =$G25*DN25 -> 0 | DP25: =DN25/$UW$25 -> 0 | DR25: =$G25*DQ25 -> 0 | DS25: =DQ25/$UW$25 -> 0 | DT25: 0 | DU25: =$G25*DT25 -> 0 | DV25: =DT25/$UW$25 -> 0 | DW25: 0 | DX25: =$G25*DW25 -> 0 | DY25: =DW25/$UW$25 -> 0 | DZ25: 0 | EA25: =$G25*DZ25 -> 0 | EB25: =DZ25/$UW$25 -> 0 | ED25: =$G25*EC25 -> 0 | EE25: =EC25/$UW$25 -> 0 | EF25: 0 | EG25: =$G25*EF25 -> 0 | EH25: =EF25/$UW$25 -> 0 | EI25: 0 | EJ25: =$G25*EI25 -> 0 | EK25: =EI25/$UW$25 -> 0 | EM25: =$G25*EL25 -> 0 | EN25: =EL25/$UW$25 -> 0 | EP25: =$G25*EO25 -> 0 | EQ25: =EO25/$UW$25 -> 0 | FW25: =$G25*FV25 -> 0 | FX25: =FV25/$UW$25 -> 0 | FZ25: =$G25*FY25 -> 0 | GA25: =FY25/$UW$25 -> 0 | GC25: =$G25*GB25 -> 0 | GD25: =GB25/$UW$25 -> 0 | UN25: =$G25*UM25 -> 0 | UO25: =UM25/$UW$25 -> 0 | UQ25: =$G25*UP25 -> 0 | UR25: =UP25/$UW$25 -> 0 | UW25: 17.6
A26: 1.5.2 | C26: B | D26: Q131 /5x5/150x150/ | E26: Q131 /5x5/150x150/ | F26: kg | G26: =CENA!G17 -> 0 | H26: 136.9 | I26: 0 | K26: =$G26*J26 -> 0 | L26: =J26/$UW$26 -> 0 | N26: 0 | O26: =M26/$UW$26 -> 0 | Q26: =$G26*P26 -> 0 | R26: =P26/$UW$26 -> 0 | T26: =$G26*S26 -> 0 | U26: =S26/$UW$26 -> 0 | DE26: 0 | DF26: =$G26*DE26 -> 0 | DG26: =DE26/$UW$26 -> 0 | DH26: 0 | DI26: =$G26*DH26 -> 0 | DJ26: =DH26/$UW$26 -> 0 | DL26: =$G26*DK26 -> 0 | DM26: =DK26/$UW$26 -> 0 | DN26: 0 | DO26: =$G26*DN26 -> 0 | DP26: =DN26/$UW$26 -> 0 | DR26: =$G26*DQ26 -> 0 | DS26: =DQ26/$UW$26 -> 0 | DT26: 0 | DU26: =$G26*DT26 -> 0 | DV26: =DT26/$UW$26 -> 0 | DW26: 0 | DX26: =$G26*DW26 -> 0 | DY26: =DW26/$UW$26 -> 0 | DZ26: 0 | EA26: =$G26*DZ26 -> 0 | EB26: =DZ26/$UW$26 -> 0 | ED26: =$G26*EC26 -> 0 | EE26: =EC26/$UW$26 -> 0 | EF26: 0 | EG26: 0 | EH26: =EF26/$UW$26 -> 0 | EI26: 0 | EJ26: 0 | EK26: =EI26/$UW$26 -> 0 | EM26: =$G26*EL26 -> 0 | EN26: =EL26/$UW$26 -> 0 | EP26: =$G26*EO26 -> 0 | EQ26: =EO26/$UW$26 -> 0 | FW26: =$G26*FV26 -> 0 | FX26: =FV26/$UW$26 -> 0 | FZ26: =$G26*FY26 -> 0 | GA26: =FY26/$UW$26 -> 0 | GB26: 27.38 | GC26: =$G26*GB26 -> 0 | GD26: =GB26/$UW$26 -> 1 | UN26: =$G26*UM26 -> 0 | UO26: =UM26/$UW$26 -> 0 | UP26: 109.52 | UQ26: =$G26*UP26 -> 0 | UR26: =UP26/$UW$26 -> 4 | UW26: 27.38
A27: 1.5.3 | C27: C | D27: Q188 /6x6/150x150/ | E27: Q188 /6x6/150x150/ | F27: kg | G27: =CENA!G18 -> 0 | H27: 1381.1 | I27: 0 | J27: 118.38 | K27: =$G27*J27 -> 0 | L27: =J27/$UW$27 -> 3 | N27: 0 | O27: =M27/$UW$27 -> 0 | Q27: =$G27*P27 -> 0 | R27: =P27/$UW$27 -> 0 | T27: =$G27*S27 -> 0 | U27: =S27/$UW$27 -> 0 | DE27: 0 | DF27: =$G27*DE27 -> 0 | DG27: =DE27/$UW$27 -> 0 | DH27: 0 | DI27: =$G27*DH27 -> 0 | DJ27: =DH27/$UW$27 -> 0 | DL27: =$G27*DK27 -> 0 | DM27: =DK27/$UW$27 -> 0 | DN27: 236.76 | DO27: =$G27*DN27 -> 0 | DP27: =DN27/$UW$27 -> 6 | DQ27: 78.92 | DR27: =$G27*DQ27 -> 0 | DS27: =DQ27/$UW$27 -> 2 | DT27: 236.76 | DU27: =$G27*DT27 -> 0 | DV27: =DT27/$UW$27 -> 6 | DW27: 0 | DX27: =$G27*DW27 -> 0 | DY27: =DW27/$UW$27 -> 0 | DZ27: 0 | EA27: =$G27*DZ27 -> 0 | EB27: =DZ27/$UW$27 -> 0 | EC27: 118.38 | ED27: =$G27*EC27 -> 0 | EE27: =EC27/$UW$27 -> 3 | EF27: 157.84 | EG27: 0 | EH27: =EF27/$UW$27 -> 4 | EI27: 0 | EJ27: 0 | EK27: =EI27/$UW$27 -> 0 | EM27: =$G27*EL27 -> 0 | EN27: =EL27/$UW$27 -> 0 | EP27: =$G27*EO27 -> 0 | EQ27: =EO27/$UW$27 -> 0 | FV27: 39.46 | FW27: =$G27*FV27 -> 0 | FX27: =FV27/$UW$27 -> 1 | FY27: 118.38 | FZ27: =$G27*FY27 -> 0 | GA27: =FY27/$UW$27 -> 3 | GB27: 157.84 | GC27: =$G27*GB27 -> 0 | GD27: =GB27/$UW$27 -> 4 | UM27: 118.38 | UN27: =$G27*UM27 -> 0 | UO27: =UM27/$UW$27 -> 3 | UQ27: =$G27*UP27 -> 0 | UR27: =UP27/$UW$27 -> 0 | UW27: 39.46
A28: 1.5.4 | C28: D | D28: Q283 /6x6/100x100/ | E28: Q283 /6x6/100x100/ | F28: kg | G28: =CENA!G19 -> 0 | H28: 0 | I28: 0 | K28: =$G28*J28 -> 0 | L28: =J28/$UW$28 -> 0 | N28: 0 | O28: =M28/$UW$28 -> 0 | Q28: =$G28*P28 -> 0 | R28: =P28/$UW$28 -> 0 | T28: =$G28*S28 -> 0 | U28: =S28/$UW$28 -> 0 | DE28: 0 | DF28: =$G28*DE28 -> 0 | DG28: =DE28/$UW$28 -> 0 | DH28: 0 | DI28: =$G28*DH28 -> 0 | DJ28: =DH28/$UW$28 -> 0 | DL28: =$G28*DK28 -> 0 | DM28: =DK28/$UW$28 -> 0 | DN28: 0 | DO28: =$G28*DN28 -> 0 | DP28: =DN28/$UW$28 -> 0 | DR28: =$G28*DQ28 -> 0 | DS28: =DQ28/$UW$28 -> 0 | DT28: 0 | DU28: =$G28*DT28 -> 0 | DV28: =DT28/$UW$28 -> 0 | DW28: 0 | DX28: =$G28*DW28 -> 0 | DY28: =DW28/$UW$28 -> 0 | DZ28: 0 | EA28: =$G28*DZ28 -> 0 | EB28: =DZ28/$UW$28 -> 0 | ED28: =$G28*EC28 -> 0 | EE28: =EC28/$UW$28 -> 0 | EF28: 0 | EG28: 0 | EH28: =EF28/$UW$28 -> 0 | EI28: 0 | EJ28: 0 | EK28: =EI28/$UW$28 -> 0 | EM28: =$G28*EL28 -> 0 | EN28: =EL28/$UW$28 -> 0 | EP28: =$G28*EO28 -> 0 | EQ28: =EO28/$UW$28 -> 0 | FW28: =$G28*FV28 -> 0 | FX28: =FV28/$UW$28 -> 0 | FZ28: =$G28*FY28 -> 0 | GA28: =FY28/$UW$28 -> 0 | GC28: =$G28*GB28 -> 0 | GD28: =GB28/$UW$28 -> 0 | UN28: =$G28*UM28 -> 0 | UO28: =UM28/$UW$28 -> 0 | UQ28: =$G28*UP28 -> 0 | UR28: =UP28/$UW$28 -> 0 | UW28: 58.21
A29: 1.5.5 | C29: E | D29: Q335 /8x8/150x150/ | E29: Q335 /8x8/150x150/ | F29: kg | G29: =CENA!G20 -> 0 | H29: 351.1 | I29: 0 | K29: =$G29*J29 -> 0 | L29: =J29/$UW$29 -> 0 | N29: 0 | O29: =M29/$UW$29 -> 0 | Q29: =$G29*P29 -> 0 | R29: =P29/$UW$29 -> 0 | T29: =$G29*S29 -> 0 | U29: =S29/$UW$29 -> 0 | DE29: 351.1 | DF29: =$G29*DE29 -> 0 | DG29: =DE29/$UW$29 -> 5 | DH29: 0 | DI29: =$G29*DH29 -> 0 | DJ29: =DH29/$UW$29 -> 0 | DL29: =$G29*DK29 -> 0 | DM29: =DK29/$UW$29 -> 0 | DN29: 0 | DO29: =$G29*DN29 -> 0 | DP29: =DN29/$UW$29 -> 0 | DR29: =$G29*DQ29 -> 0 | DS29: =DQ29/$UW$29 -> 0 | DT29: 0 | DU29: =$G29*DT29 -> 0 | DV29: =DT29/$UW$29 -> 0 | DW29: 0 | DX29: =$G29*DW29 -> 0 | DY29: =DW29/$UW$29 -> 0 | DZ29: 0 | EA29: =$G29*DZ29 -> 0 | EB29: =DZ29/$UW$29 -> 0 | ED29: =$G29*EC29 -> 0 | EE29: =EC29/$UW$29 -> 0 | EF29: 0 | EG29: 0 | EH29: =EF29/$UW$29 -> 0 | EI29: 0 | EJ29: 0 | EK29: =EI29/$UW$29 -> 0 | EM29: =$G29*EL29 -> 0 | EN29: =EL29/$UW$29 -> 0 | EP29: =$G29*EO29 -> 0 | EQ29: =EO29/$UW$29 -> 0 | FW29: =$G29*FV29 -> 0 | FX29: =FV29/$UW$29 -> 0 | FZ29: =$G29*FY29 -> 0 | GA29: =FY29/$UW$29 -> 0 | GC29: =$G29*GB29 -> 0 | GD29: =GB29/$UW$29 -> 0 | UN29: =$G29*UM29 -> 0 | UO29: =UM29/$UW$29 -> 0 | UQ29: =$G29*UP29 -> 0 | UR29: =UP29/$UW$29 -> 0 | UW29: 70.22
A31: 2 | B31: Z | D31: MATERIJAL ZA ZIDANJE, MALTERISANJE, GLETOVANJE I FARBANJE | E31: MASONRY, PLASTERING FAIRING AND PAINTING MATERIAL
A32: 2.1 | B32: Z | C32: 1 | D32: Giter blok (d/š/v) 250x190x190 mm | E32: Gitter block (l/w/h) 250x190x190 mm | F32: kom/pcs | G32: =CENA!G23 -> 0 | H32: =J32+M32+P32+S32+AQ32+CJ32+DK32+FD32+V32+Y32+AB32+AE32+AH32+AK32+AN32+AT32+AW32+AZ32+BC32+BF32+BI32+BL32+BO32+BR32+BU32+BX32+CA32+CD32+CG32+CM32+CP32+CS32+CV32+CY32+DB32+DE32+DH32+DN32+DQ32+DT32+DW32+DZ32+EC32+EF32+EI32+EL32+EO32+ER32+EU32+EX32+FA32+FG32+FJ32+FM32+FP32+FS32+FV32+FY32+GB32+GE32+GH32+GK32+GN32+GQ32+GT32+GW32+GZ32+HC32+HF32+HI32+HL32+HO32+HR32+HU32+HX32+IA32+ID32+IG32+IJ32+IM32+IP32+IS32+IV32+IY32+JB32+JE32+JH32+JK32+JN32+JQ32+JT32+JW32+JZ32+KC32+KF32+KI32+KL32+KO32+KR32+KU32+KX32+LA32+LD32+LG32+LJ32+LM32+LP32+LS32+LV32+LY32+MB32+ME32+MH32+MK32+MN32+MQ32+MT32+MW32+MZ32+NC32+NF32+NI32+NL32+NO32+NR32+NU32+NX32+OA32+OD32+OG32+OJ32+OM32+OP32+OS32+OV32+OY32+PB32+PE32+PH32+PK32+PN32+PQ32+PT32+PW32+PZ32+QC32+QF32+QI32+QL32+QO32+QR32+QU32+QX32+RA32+RD32+RG32+RJ32+RM32+RP32+RS32+RV32+RY32+SB32+SE32+SH32+SK32+SN32+SQ32+ST32+SW32+SZ32+TC32+TF32+TI32+TL32+TO32+TR32+TU32+TX32+UA32+UD32+UG32+UJ32+UM32+UP32+US32 -> 8800 | I32: =G32*H32 -> 0 | J32: 640 | K32: =$G32*J32 -> 0 | N32: =$G32*M32 -> 0 | Q32: =$G32*P32 -> 0 | S32: 480 | T32: =$G32*S32 -> 0 | DE32: 480 | DF32: =$G32*DE32 -> 0 | DH32: 480 | DI32: =$G32*DH32 -> 0 | DK32: 0 | DL32: =$G32*DK32 -> 0 | DN32: 2080 | DO32: =$G32*DN32 -> 0 | DR32: =$G32*DQ32 -> 0 | DT32: 1120 | DU32: =$G32*DT32 -> 0 | DW32: 0 | DX32: =$G32*DW32 -> 0 | DZ32: 0 | EA32: =$G32*DZ32 -> 0 | EC32: 640 | ED32: =$G32*EC32 -> 0 | EF32: 0 | EG32: =$G32*EF32 -> 0 | EI32: 0 | EJ32: =$G32*EI32 -> 0 | EL32: 1600 | EM32: =$G32*EL32 -> 0 | EP32: =$G32*EO32 -> 0 | FV32: 960 | FW32: =$G32*FV32 -> 0 | FZ32: =$G32*FY32 -> 0 | GC32: =$G32*GB32 -> 0 | UM32: 320 | UN32: =$G32*UM32 -> 0 | UQ32: =$G32*UP32 -> 0
A33: 2.2 | B33: Z | C33: 2 | D33: Giter polublok (12cm) (d/š/v) 250x120x190mm | E33: Gitter half block (12cm) (l/w/h) 250x120x190mm | F33: kom/pcs | G33: =CENA!G24 -> 0 | H33: 3570 | I33: 0 | K33: =$G33*J33 -> 0 | N33: 0 | Q33: =$G33*P33 -> 0 | T33: =$G33*S33 -> 0 | DE33: 0 | DF33: =$G33*DE33 -> 0 | DH33: 0 | DI33: =$G33*DH33 -> 0 | DK33: 2940 | DL33: =$G33*DK33 -> 0 | DN33: 0 | DO33: =$G33*DN33 -> 0 | DQ33: 420 | DR33: =$G33*DQ33 -> 0 | DT33: 210 | DU33: =$G33*DT33 -> 0 | DW33: 0 | DX33: =$G33*DW33 -> 0 | DZ33: 0 | EA33: =$G33*DZ33 -> 0 | ED33: =$G33*EC33 -> 0 | EF33: 0 | EG33: 0 | EI33: 0 | EJ33: 0 | EM33: =$G33*EL33 -> 0 | EP33: =$G33*EO33 -> 0 | FW33: =$G33*FV33 -> 0 | FZ33: =$G33*FY33 -> 0 | GC33: =$G33*GB33 -> 0 | UN33: =$G33*UM33 -> 0 | UQ33: =$G33*UP33 -> 0
A34: 2.3 | B34: Z | C34: 3 | D34: Opeka puna (d/š/v) 250x120x65 mm | E34: Brick (full-without holes) (l/w/h) 250x120x65 mm | F34: kom/pcs | G34: =CENA!G25 -> 0 | H34: 8448 | I34: 0 | J34: 512 | K34: =$G34*J34 -> 0 | M34: 2560 | N34: 0 | P34: 512 | Q34: =$G34*P34 -> 0 | T34: =$G34*S34 -> 0 | DE34: 2048 | DF34: =$G34*DE34 -> 0 | DH34: 0 | DI34: =$G34*DH34 -> 0 | DK34: 0 | DL34: =$G34*DK34 -> 0 | DN34: 0 | DO34: =$G34*DN34 -> 0 | DR34: =$G34*DQ34 -> 0 | DT34: 0 | DU34: =$G34*DT34 -> 0 | DW34: 0 | DX34: =$G34*DW34 -> 0 | DZ34: 0 | EA34: =$G34*DZ34 -> 0 | EC34: 1536 | ED34: =$G34*EC34 -> 0 | EF34: 0 | EG34: 0 | EI34: 0 | EJ34: 0 | EM34: =$G34*EL34 -> 0 | EP34: =$G34*EO34 -> 0 | FW34: =$G34*FV34 -> 0 | FZ34: =$G34*FY34 -> 0 | GB34: 256 | GC34: =$G34*GB34 -> 0 | UM34: 1024 | UN34: =$G34*UM34 -> 0 | UQ34: =$G34*UP34 -> 0
A35: 2.4 | B35: Z | C35: 4 | D35: Blok od porobetona za pregradni zid (d/š/v) 625x200x200 mm | E35: Aerated concrete block for partition wall (l/w/h) 625x200x200 mm | F35: kom/pcs | G35: =CENA!G26 -> 0 | H35: 210 | I35: 0 | K35: =$G35*J35 -> 0 | N35: 0 | Q35: =$G35*P35 -> 0 | T35: =$G35*S35 -> 0 | DE35: 0 | DF35: =$G35*DE35 -> 0 | DH35: 0 | DI35: =$G35*DH35 -> 0 | DK35: 0 | DL35: =$G35*DK35 -> 0 | DN35: 0 | DO35: =$G35*DN35 -> 0 | DQ35: 210 | DR35: =$G35*DQ35 -> 0 | DT35: 0 | DU35: =$G35*DT35 -> 0 | DW35: 0 | DX35: =$G35*DW35 -> 0 | DZ35: 0 | EA35: =$G35*DZ35 -> 0 | ED35: =$G35*EC35 -> 0 | EF35: 0 | EG35: 0 | EI35: 0 | EJ35: 0 | EM35: =$G35*EL35 -> 0 | EP35: =$G35*EO35 -> 0 | FW35: =$G35*FV35 -> 0 | FZ35: =$G35*FY35 -> 0 | GC35: =$G35*GB35 -> 0 | UN35: =$G35*UM35 -> 0 | UQ35: =$G35*UP35 -> 0
A36: 2.5 | B36: Z | C36: 5 | D36: Fert nosači (gredice) Dužina nosača je jednaka dužini binora = širina otvora između zidova + 30 cm. Broj gredica = dužina prostorije x 0,40 | E36: Fert beams Boom length is equal to the length of Binor = width of the openings between the walls + 30 cm. Number of beams = length of room x 0.40 | F36: / | G36: / | H36: / | I36: / | J36: / | K36: / | M36: / | N36: / | P36: / | Q36: / | S36: / | T36: / | DE36: / | DF36: / | DH36: / | DI36: / | DK36: / | DL36: / | DN36: / | DO36: / | DQ36: / | DR36: / | DT36: / | DU36: / | DW36: / | DX36: / | DZ36: / | EA36: / | EC36: / | ED36: / | EF36: / | EG36: / | EI36: / | EJ36: / | EL36: / | EM36: / | EO36: / | EP36: / | FV36: / | FW36: / | FY36: / | FZ36: / | GB36: / | GC36: / | UM36: / | UN36: / | UP36: / | UQ36: /
A37: 2.5.1 | C37: A | D37: 0,00-3,90 m | E37: 0,00-3,90 m | F37: m1 | G37: =CENA!G28 -> 0 | H37: =J37+M37+P37+S37+AQ37+CJ37+DK37+FD37+V37+Y37+AB37+AE37+AH37+AK37+AN37+AT37+AW37+AZ37+BC37+BF37+BI37+BL37+BO37+BR37+BU37+BX37+CA37+CD37+CG37+CM37+CP37+CS37+CV37+CY37+DB37+DE37+DH37+DN37+DQ37+DT37+DW37+DZ37+EC37+EF37+EI37+EL37+EO37+ER37+EU37+EX37+FA37+FG37+FJ37+FM37+FP37+FS37+FV37+FY37+GB37+GE37+GH37+GK37+GN37+GQ37+GT37+GW37+GZ37+HC37+HF37+HI37+HL37+HO37+HR37+HU37+HX37+IA37+ID37+IG37+IJ37+IM37+IP37+IS37+IV37+IY37+JB37+JE37+JH37+JK37+JN37+JQ37+JT37+JW37+JZ37+KC37+KF37+KI37+KL37+KO37+KR37+KU37+KX37+LA37+LD37+LG37+LJ37+LM37+LP37+LS37+LV37+LY37+MB37+ME37+MH37+MK37+MN37+MQ37+MT37+MW37+MZ37+NC37+NF37+NI37+NL37+NO37+NR37+NU37+NX37+OA37+OD37+OG37+OJ37+OM37+OP37+OS37+OV37+OY37+PB37+PE37+PH37+PK37+PN37+PQ37+PT37+PW37+PZ37+QC37+QF37+QI37+QL37+QO37+QR37+QU37+QX37+RA37+RD37+RG37+RJ37+RM37+RP37+RS37+RV37+RY37+SB37+SE37+SH37+SK37+SN37+SQ37+ST37+SW37+SZ37+TC37+TF37+TI37+TL37+TO37+TR37+TU37+TX37+UA37+UD37+UG37+UJ37+UM37+UP37+US37 -> 124.8 | I37: =G37*H37 -> 0 | K37: =$G37*J37 -> 0 | L37: =J37/3.9 -> 0 | N37: =$G37*M37 -> 0 | O37: =M37/3.9 -> 0 | Q37: =$G37*P37 -> 0 | T37: =$G37*S37 -> 0 | DE37: 0 | DF37: =$G37*DE37 -> 0 | DG37: =DE37/3.9 -> 0 | DH37: 0 | DI37: =$G37*DH37 -> 0 | DJ37: =DH37/3.9 -> 0 | DK37: 0 | DL37: =$G37*DK37 -> 0 | DN37: 0 | DO37: =$G37*DN37 -> 0 | DR37: =$G37*DQ37 -> 0 | DS37: =DQ37/3.9 -> 0 | DT37: 0 | DU37: =$G37*DT37 -> 0 | DV37: =DT37/3.9 -> 0 | DW37: 0 | DX37: =$G37*DW37 -> 0 | DZ37: 0 | EA37: =$G37*DZ37 -> 0 | ED37: =$G37*EC37 -> 0 | EF37: 0 | EG37: =$G37*EF37 -> 0 | EH37: =EF37/3.9 -> 0 | EI37: 0 | EJ37: =$G37*EI37 -> 0 | EK37: =EI37/3.9 -> 0 | EM37: =$G37*EL37 -> 0 | EP37: =$G37*EO37 -> 0 | FW37: =$G37*FV37 -> 0 | FZ37: =$G37*FY37 -> 0 | GC37: =$G37*GB37 -> 0 | GD37: =GB37/3.9 -> 0 | UM37: 124.8 | UN37: =$G37*UM37 -> 0 | UQ37: =$G37*UP37 -> 0 | UR37: =UP37/3.9 -> 0
A38: 2.5.2 | C38: B | D38: 3,91-4,50 m | E38: 3,91-4,50 m | F38: m1 | G38: =CENA!G29 -> 0 | H38: 265.5 | I38: 0 | K38: =$G38*J38 -> 0 | L38: =J38/4.5 -> 0 | N38: 0 | O38: =M38/4.5 -> 0 | Q38: 0 | T38: 0 | DE38: 90 | DF38: 0 | DG38: =DE38/4.5 -> 20 | DH38: 0 | DI38: 0 | DJ38: =DH38/4.5 -> 0 | DK38: 0 | DL38: 0 | DN38: 0 | DO38: 0 | DR38: 0 | DS38: =DQ38/4.5 -> 0 | DT38: 76.5 | DU38: 0 | DV38: =DT38/4.5 -> 17 | DW38: 0 | DX38: 0 | DZ38: 99 | EA38: 0 | ED38: 0 | EF38: 0 | EG38: 0 | EH38: =EF38/4.5 -> 0 | EI38: 0 | EJ38: 0 | EK38: =EI38/4.5 -> 0 | EM38: 0 | EP38: 0 | FW38: 0 | FZ38: 0 | GC38: 0 | GD38: =GB38/4.5 -> 0 | UN38: 0 | UQ38: 0 | UR38: =UP38/4.5 -> 0
A39: 2.5.3 | C39: C | D39: 4,51-4,90 m | E39: 4,51-4,90 m | F39: m1 | G39: =CENA!G30 -> 0 | H39: 0 | I39: 0 | K39: =$G39*J39 -> 0 | L39: =J39/4.9 -> 0 | N39: 0 | O39: =M39/4.9 -> 0 | Q39: 0 | T39: 0 | DE39: 0 | DF39: 0 | DG39: =DE39/4.9 -> 0 | DH39: 0 | DI39: 0 | DJ39: =DH39/4.9 -> 0 | DK39: 0 | DL39: 0 | DN39: 0 | DO39: 0 | DR39: 0 | DS39: =DQ39/4.9 -> 0 | DT39: 0 | DU39: 0 | DV39: =DT39/4.9 -> 0 | DW39: 0 | DX39: 0 | DZ39: 0 | EA39: 0 | ED39: 0 | EF39: 0 | EG39: 0 | EH39: =EF39/4.9 -> 0 | EI39: 0 | EJ39: 0 | EK39: =EI39/4.9 -> 0 | EM39: 0 | EP39: 0 | FW39: 0 | FZ39: 0 | GC39: 0 | GD39: =GB39/4.9 -> 0 | UN39: 0 | UQ39: 0 | UR39: =UP39/4.9 -> 0
A40: 2.5.4 | C40: D | D40: 4,91-5,30 m | E40: 4,91-5,30 m | F40: m1 | G40: =CENA!G31 -> 0 | H40: 169.6 | I40: 0 | K40: =$G40*J40 -> 0 | L40: =J40/5.3 -> 0 | N40: 0 | O40: =M40/5.3 -> 0 | Q40: 0 | T40: 0 | DE40: 79.5 | DF40: 0 | DG40: =DE40/5.3 -> 15 | DH40: 0 | DI40: 0 | DJ40: =DH40/5.3 -> 0 | DK40: 0 | DL40: 0 | DN40: 90.1 | DO40: 0 | DR40: 0 | DS40: =DQ40/5.3 -> 0 | DT40: 0 | DU40: 0 | DV40: =DT40/5.3 -> 0 | DW40: 0 | DX40: 0 | DZ40: 0 | EA40: 0 | ED40: 0 | EF40: 0 | EG40: 0 | EH40: =EF40/5.3 -> 0 | EI40: 0 | EJ40: 0 | EK40: =EI40/5.3 -> 0 | EM40: 0 | EP40: 0 | FW40: 0 | FZ40: 0 | GC40: 0 | GD40: =GB40/5.3 -> 0 | UN40: 0 | UQ40: 0 | UR40: =UP40/5.3 -> 0
A41: 2.5.5 | C41: E | D41: 5,31-5,90 m | E41: 5,31-5,90 m | F41: m1 | G41: =CENA!G32 -> 0 | H41: 0 | I41: 0 | K41: =$G41*J41 -> 0 | L41: =J41/5.9 -> 0 | N41: 0 | O41: =M41/5.9 -> 0 | Q41: 0 | T41: 0 | DE41: 0 | DF41: 0 | DG41: =DE41/5.9 -> 0 | DH41: 0 | DI41: 0 | DJ41: =DH41/5.9 -> 0 | DK41: 0 | DL41: 0 | DN41: 0 | DO41: 0 | DR41: 0 | DS41: =DQ41/5.9 -> 0 | DT41: 0 | DU41: 0 | DV41: =DT41/5.9 -> 0 | DW41: 0 | DX41: 0 | DZ41: 0 | EA41: 0 | ED41: 0 | EF41: 0 | EG41: 0 | EH41: =EF41/5.9 -> 0 | EI41: 0 | EJ41: 0 | EK41: =EI41/5.9 -> 0 | EM41: 0 | EP41: 0 | FW41: 0 | FZ41: 0 | GC41: 0 | GD41: =GB41/5.9 -> 0 | UN41: 0 | UQ41: 0 | UR41: =UP41/5.9 -> 0
A42: 2.5.6 | C42: F | D42: 5,91-6,30 m | E42: 5,91-6,30 m | F42: m1 | G42: =CENA!G33 -> 0 | H42: 0 | I42: 0 | K42: =$G42*J42 -> 0 | L42: =J42/6.3 -> 0 | N42: 0 | O42: =M42/6.3 -> 0 | Q42: 0 | T42: 0 | DE42: 0 | DF42: 0 | DG42: =DE42/6.3 -> 0 | DH42: 0 | DI42: 0 | DJ42: =DH42/6.3 -> 0 | DK42: 0 | DL42: 0 | DN42: 0 | DO42: 0 | DR42: 0 | DS42: =DQ42/6.3 -> 0 | DT42: 0 | DU42: 0 | DV42: =DT42/6.3 -> 0 | DW42: 0 | DX42: 0 | DZ42: 0 | EA42: 0 | ED42: 0 | EF42: 0 | EG42: 0 | EH42: =EF42/6.3 -> 0 | EI42: 0 | EJ42: 0 | EK42: =EI42/6.3 -> 0 | EM42: 0 | EP42: 0 | FW42: 0 | FZ42: 0 | GC42: 0 | GD42: =GB42/6.3 -> 0 | UN42: 0 | UQ42: 0 | UR42: =UP42/6.3 -> 0
A43: 2.6 | B43: Z | C43: 6 | D43: Fert ispuna (d/š/v) 245x285/275x160 mm | E43: Fert fillings (l/w/h) 245x285/275x160 mm | F43: kom/pcs | G43: =CENA!G34 -> 0 | H43: 1764 | I43: 0 | K43: =$G43*J43 -> 0 | N43: 0 | Q43: 0 | T43: 0 | DE43: 756 | DF43: 0 | DH43: 0 | DI43: 0 | DK43: 0 | DL43: 0 | DN43: 378 | DO43: 0 | DR43: 0 | DT43: 252 | DU43: 0 | DW43: 0 | DX43: 0 | DZ43: 0 | EA43: 0 | ED43: 0 | EF43: 0 | EG43: 0 | EI43: 0 | EJ43: 0 | EM43: 0 | EP43: 0 | FW43: 0 | FZ43: 0 | GC43: 0 | UM43: 378 | UN43: 0 | UQ43: 0
A44: 2.7 | B44: Z | C44: 7 | D44: Malter za zidanje Pripremljeno krečno - cementno vezivo | E44: Mortar for masonry Prepared lime - cement binder | F44: kg | G44: =CENA!G35 -> 0 | H44: 9280 | I44: 0 | J44: 800 | K44: =$G44*J44 -> 0 | M44: 840 | N44: 0 | P44: 240 | Q44: 0 | S44: 400 | T44: 0 | DE44: 320 | DF44: 0 | DH44: 400 | DI44: 0 | DK44: 0 | DL44: 0 | DN44: 1080 | DO44: 0 | DQ44: 880 | DR44: 0 | DT44: 1040 | DU44: 0 | DW44: 0 | DX44: 0 | DZ44: 0 | EA44: 0 | ED44: 0 | EF44: 0 | EG44: 0 | EI44: 0 | EJ44: 0 | EL44: 1600 | EM44: 0 | EP44: 0 | FV44: 920 | FW44: 0 | FZ44: 0 | GB44: 120 | GC44: 0 | UM44: 640 | UN44: 0 | UQ44: 0
A45: 2.8 | B45: Z | C45: 8 | D45: Malter za malterisanje Pripremljeno krečno - cementno vezivo | E45: Mortar for plastering Prepared lime - cement binder | F45: kg | G45: =CENA!G36 -> 0 | H45: 35400 | I45: 0 | J45: 1600 | K45: =$G45*J45 -> 0 | M45: 3640 | N45: 0 | P45: 6960 | Q45: 0 | S45: 800 | T45: 0 | DE45: 400 | DF45: 0 | DH45: 0 | DI45: 0 | DK45: 5360 | DL45: 0 | DN45: 0 | DO45: 0 | DR45: 0 | DT45: 2440 | DU45: 0 | DW45: 0 | DX45: 0 | DZ45: 2600 | EA45: 0 | ED45: 0 | EF45: 0 | EG45: 0 | EI45: 0 | EJ45: 0 | EL45: 1560 | EM45: 0 | EO45: 1320 | EP45: 0 | FV45: 1200 | FW45: 0 | FZ45: 0 | GB45: 280 | GC45: 0 | UM45: 2600 | UN45: 0 | UP45: 4640 | UQ45: 0
A46: 2.9 | B46: Z | C46: 9 | D46: Krečna glet masa Bezcementna krečna masa za gletovanje | E46: Lime smoothing mass No cement lime compound for smoothing | F46: kg | G46: =CENA!G37 -> 0 | H46: 5050 | I46: 0 | J46: 350 | K46: =$G46*J46 -> 0 | M46: 400 | N46: 0 | P46: 550 | Q46: 0 | S46: 75 | T46: 0 | DE46: 0 | DF46: 0 | DH46: 100 | DI46: 0 | DK46: 425 | DL46: 0 | DN46: 0 | DO46: 0 | DQ46: 175 | DR46: 0 | DT46: 500 | DU46: 0 | DW46: 100 | DX46: 0 | DZ46: 200 | EA46: 0 | EC46: 250 | ED46: 0 | EF46: 300 | EG46: 0 | EI46: 300 | EJ46: 0 | EL46: 150 | EM46: 0 | EO46: 125 | EP46: 0 | FV46: 125 | FW46: 0 | FY46: 125 | FZ46: 0 | GB46: 50 | GC46: 0 | UM46: 300 | UN46: 0 | UP46: 450 | UQ46: 0
A47: 2.10 | B47: Z | C47: 10 | D47: Poludisperzivna boja Poludisperziona boja razrediva vodom | E47: Semi dispersion paint | F47: kg | G47: =CENA!G38 -> 0 | H47: 1435 | I47: 0 | J47: 50 | K47: =$G47*J47 -> 0 | M47: 50 | N47: 0 | P47: 100 | Q47: 0 | S47: 50 | T47: 0 | DE47: 0 | DF47: 0 | DH47: 50 | DI47: 0 | DK47: 75 | DL47: 0 | DN47: 75 | DO47: 0 | DQ47: 75 | DR47: 0 | DT47: 75 | DU47: 0 | DW47: 50 | DX47: 0 | DZ47: 50 | EA47: 0 | EC47: 150 | ED47: 0 | EF47: 75 | EG47: 0 | EI47: 75 | EJ47: 0 | EL47: 75 | EM47: 0 | EO47: 50 | EP47: 0 | FV47: 50 | FW47: 0 | FY47: 75 | FZ47: 0 | GB47: 75 | GC47: 0 | UM47: 50 | UN47: 0 | UP47: 60 | UQ47: 0
A49: 3 | B49: K | D49: MATERIJAL ZA KROVNU KONSTRUKCIJU, KROVNI POKRIVAČ, OSB I GIPS KARONSKE TABLE | E49: ROOF CONSTRUCTION AND ROOFING MATERIAL, OSB AND PLASTERBOARD TABLE
A50: 3.1 | B50: K | C50: 1 | D50: Presovani glineni crep I klase dimenzija: 400-450x245-275 mm | E50: Pressed clay tiles class 1 dim: 400-450x245-275 mm | F50: kom/pcs | G50: =CENA!G41 -> 0 | H50: =J50+M50+P50+S50+AQ50+CJ50+DK50+FD50+V50+Y50+AB50+AE50+AH50+AK50+AN50+AT50+AW50+AZ50+BC50+BF50+BI50+BL50+BO50+BR50+BU50+BX50+CA50+CD50+CG50+CM50+CP50+CS50+CV50+CY50+DB50+DE50+DH50+DN50+DQ50+DT50+DW50+DZ50+EC50+EF50+EI50+EL50+EO50+ER50+EU50+EX50+FA50+FG50+FJ50+FM50+FP50+FS50+FV50+FY50+GB50+GE50+GH50+GK50+GN50+GQ50+GT50+GW50+GZ50+HC50+HF50+HI50+HL50+HO50+HR50+HU50+HX50+IA50+ID50+IG50+IJ50+IM50+IP50+IS50+IV50+IY50+JB50+JE50+JH50+JK50+JN50+JQ50+JT50+JW50+JZ50+KC50+KF50+KI50+KL50+KO50+KR50+KU50+KX50+LA50+LD50+LG50+LJ50+LM50+LP50+LS50+LV50+LY50+MB50+ME50+MH50+MK50+MN50+MQ50+MT50+MW50+MZ50+NC50+NF50+NI50+NL50+NO50+NR50+NU50+NX50+OA50+OD50+OG50+OJ50+OM50+OP50+OS50+OV50+OY50+PB50+PE50+PH50+PK50+PN50+PQ50+PT50+PW50+PZ50+QC50+QF50+QI50+QL50+QO50+QR50+QU50+QX50+RA50+RD50+RG50+RJ50+RM50+RP50+RS50+RV50+RY50+SB50+SE50+SH50+SK50+SN50+SQ50+ST50+SW50+SZ50+TC50+TF50+TI50+TL50+TO50+TR50+TU50+TX50+UA50+UD50+UG50+UJ50+UM50+UP50+US50 -> 65280 | I50: =G50*H50 -> 0 | J50: 2560 | K50: =$G50*J50 -> 0 | M50: 4800 | N50: =$G50*M50 -> 0 | P50: 2240 | Q50: =$G50*P50 -> 0 | S50: 1920 | T50: =$G50*S50 -> 0 | DE50: 2560 | DF50: =$G50*DE50 -> 0 | DH50: 2880 | DI50: =$G50*DH50 -> 0 | DK50: 2560 | DL50: =$G50*DK50 -> 0 | DN50: 4480 | DO50: =$G50*DN50 -> 0 | DQ50: 2560 | DR50: =$G50*DQ50 -> 0 | DT50: 2560 | DU50: =$G50*DT50 -> 0 | DW50: 3840 | DX50: =$G50*DW50 -> 0 | DZ50: 3200 | EA50: =$G50*DZ50 -> 0 | EC50: 2240 | ED50: =$G50*EC50 -> 0 | EF50: 4480 | EG50: =$G50*EF50 -> 0 | EI50: 3520 | EJ50: =$G50*EI50 -> 0 | EL50: 2240 | EM50: =$G50*EL50 -> 0 | EO50: 3200 | EP50: =$G50*EO50 -> 0 | FV50: 4480 | FW50: =$G50*FV50 -> 0 | FY50: 3520 | FZ50: =$G50*FY50 -> 0 | GB50: 2240 | GC50: =$G50*GB50 -> 0 | UM50: 960 | UN50: =$G50*UM50 -> 0 | UP50: 2240 | UQ50: =$G50*UP50 -> 0
A51: 3.2 | B51: K | C51: 3 | D51: Biber crep I klase dimenzija: 180x380 mm | E51: Biber clay tiles class 1 dim: 180x380 mm | F51: kom/pcs | G51: =CENA!G42 -> 0 | H51: 0 | I51: 0 | K51: =$G51*J51 -> 0 | N51: 0 | Q51: =$G51*P51 -> 0 | T51: =$G51*S51 -> 0 | DE51: 0 | DF51: =$G51*DE51 -> 0 | DH51: 0 | DI51: =$G51*DH51 -> 0 | DK51: 0 | DL51: =$G51*DK51 -> 0 | DN51: 0 | DO51: =$G51*DN51 -> 0 | DR51: =$G51*DQ51 -> 0 | DT51: 0 | DU51: =$G51*DT51 -> 0 | DW51: 0 | DX51: =$G51*DW51 -> 0 | DZ51: 0 | EA51: =$G51*DZ51 -> 0 | ED51: =$G51*EC51 -> 0 | EF51: 0 | EG51: 0 | EI51: 0 | EJ51: 0 | EM51: =$G51*EL51 -> 0 | EP51: =$G51*EO51 -> 0 | FW51: =$G51*FV51 -> 0 | FZ51: =$G51*FY51 -> 0 | GC51: =$G51*GB51 -> 0 | UN51: =$G51*UM51 -> 0 | UQ51: =$G51*UP51 -> 0
A52: 3.3 | B52: K | C52: 2 | D52: Slemeni crep I klase (žljebnjak) | E52: Ridge clay tiles class 1 | F52: kom/pcs | G52: =CENA!G43 -> 0 | H52: 1203 | I52: 0 | J52: 48 | K52: =$G52*J52 -> 0 | M52: 86 | N52: 0 | P52: 35 | Q52: =$G52*P52 -> 0 | S52: 28 | T52: =$G52*S52 -> 0 | DE52: 30 | DF52: =$G52*DE52 -> 0 | DH52: 48 | DI52: =$G52*DH52 -> 0 | DK52: 36 | DL52: =$G52*DK52 -> 0 | DN52: 69 | DO52: =$G52*DN52 -> 0 | DQ52: 114 | DR52: =$G52*DQ52 -> 0 | DT52: 36 | DU52: =$G52*DT52 -> 0 | DW52: 60 | DX52: =$G52*DW52 -> 0 | DZ52: 48 | EA52: =$G52*DZ52 -> 0 | EC52: 36 | ED52: =$G52*EC52 -> 0 | EF52: 81 | EG52: 0 | EI52: 45 | EJ52: 0 | EL52: 52 | EM52: =$G52*EL52 -> 0 | EO52: 79 | EP52: =$G52*EO52 -> 0 | FV52: 115 | FW52: =$G52*FV52 -> 0 | FY52: 82 | FZ52: =$G52*FY52 -> 0 | GB52: 21 | GC52: =$G52*GB52 -> 0 | UM52: 18 | UN52: =$G52*UM52 -> 0 | UP52: 36 | UQ52: =$G52*UP52 -> 0
A53: 3.4 | B53: K | C53: 4 | D53: Paropropusna i vodonepropusna krovna folija kontrola vodene pare iznad termoizolacije | E53: Vapour permeable and waterproof roof sheeting control of water vapor above the insulation | F53: m2 | G53: =CENA!G44 -> 0 | H53: 4875 | I53: 0 | J53: 225 | K53: =$G53*J53 -> 0 | M53: 300 | N53: 0 | P53: 150 | Q53: =$G53*P53 -> 0 | S53: 150 | T53: =$G53*S53 -> 0 | DE53: 225 | DF53: =$G53*DE53 -> 0 | DH53: 225 | DI53: =$G53*DH53 -> 0 | DK53: 225 | DL53: =$G53*DK53 -> 0 | DN53: 375 | DO53: =$G53*DN53 -> 0 | DQ53: 225 | DR53: =$G53*DQ53 -> 0 | DT53: 225 | DU53: =$G53*DT53 -> 0 | DW53: 300 | DX53: =$G53*DW53 -> 0 | DZ53: 225 | EA53: =$G53*DZ53 -> 0 | EC53: 150 | ED53: =$G53*EC53 -> 0 | EF53: 300 | EG53: 0 | EI53: 300 | EJ53: 0 | EL53: 150 | EM53: =$G53*EL53 -> 0 | EO53: 225 | EP53: =$G53*EO53 -> 0 | FV53: 300 | FW53: =$G53*FV53 -> 0 | FY53: 225 | FZ53: =$G53*FY53 -> 0 | GB53: 150 | GC53: =$G53*GB53 -> 0 | UM53: 75 | UN53: =$G53*UM53 -> 0 | UP53: 150 | UQ53: =$G53*UP53 -> 0
A54: 3.5 | B54: K | C54: 5 | D54: Staklena mineralna vuna termoizolacija potkrovlja između rogova | E54: Glass Mineral Wool loft insulation between the rafters | F54: / | G54: / | H54: / | I54: / | J54: / | K54: / | M54: / | N54: / | P54: / | Q54: / | S54: / | T54: / | DE54: / | DF54: / | DH54: / | DI54: / | DK54: / | DL54: / | DN54: / | DO54: / | DQ54: / | DR54: / | DT54: / | DU54: / | DW54: / | DX54: / | DZ54: / | EA54: / | EC54: / | ED54: / | EF54: / | EG54: / | EI54: / | EJ54: / | EL54: / | EM54: / | EO54: / | EP54: / | FV54: / | FW54: / | FY54: / | FZ54: / | GB54: / | GC54: / | UM54: / | UN54: / | UP54: / | UQ54: /
A55: 3.5.1 | C55: A | D55: debljina d=10 cm | E55: thickness d=10 cm | F55: m2 | G55: =CENA!G46 -> 0 | H55: =J55+M55+P55+S55+AQ55+CJ55+DK55+FD55+V55+Y55+AB55+AE55+AH55+AK55+AN55+AT55+AW55+AZ55+BC55+BF55+BI55+BL55+BO55+BR55+BU55+BX55+CA55+CD55+CG55+CM55+CP55+CS55+CV55+CY55+DB55+DE55+DH55+DN55+DQ55+DT55+DW55+DZ55+EC55+EF55+EI55+EL55+EO55+ER55+EU55+EX55+FA55+FG55+FJ55+FM55+FP55+FS55+FV55+FY55+GB55+GE55+GH55+GK55+GN55+GQ55+GT55+GW55+GZ55+HC55+HF55+HI55+HL55+HO55+HR55+HU55+HX55+IA55+ID55+IG55+IJ55+IM55+IP55+IS55+IV55+IY55+JB55+JE55+JH55+JK55+JN55+JQ55+JT55+JW55+JZ55+KC55+KF55+KI55+KL55+KO55+KR55+KU55+KX55+LA55+LD55+LG55+LJ55+LM55+LP55+LS55+LV55+LY55+MB55+ME55+MH55+MK55+MN55+MQ55+MT55+MW55+MZ55+NC55+NF55+NI55+NL55+NO55+NR55+NU55+NX55+OA55+OD55+OG55+OJ55+OM55+OP55+OS55+OV55+OY55+PB55+PE55+PH55+PK55+PN55+PQ55+PT55+PW55+PZ55+QC55+QF55+QI55+QL55+QO55+QR55+QU55+QX55+RA55+RD55+RG55+RJ55+RM55+RP55+RS55+RV55+RY55+SB55+SE55+SH55+SK55+SN55+SQ55+ST55+SW55+SZ55+TC55+TF55+TI55+TL55+TO55+TR55+TU55+TX55+UA55+UD55+UG55+UJ55+UM55+UP55+US55 -> 333 | I55: =G55*H55 -> 0 | J55: 108 | K55: =$G55*J55 -> 0 | M55: 27 | N55: =$G55*M55 -> 0 | Q55: =$G55*P55 -> 0 | T55: =$G55*S55 -> 0 | DE55: 0 | DF55: =$G55*DE55 -> 0 | DH55: 0 | DI55: =$G55*DH55 -> 0 | DK55: 0 | DL55: =$G55*DK55 -> 0 | DN55: 0 | DO55: =$G55*DN55 -> 0 | DR55: =$G55*DQ55 -> 0 | DT55: 81 | DU55: =$G55*DT55 -> 0 | DW55: 0 | DX55: =$G55*DW55 -> 0 | DZ55: 0 | EA55: =$G55*DZ55 -> 0 | EC55: 81 | ED55: =$G55*EC55 -> 0 | EF55: 0 | EG55: =$G55*EF55 -> 0 | EI55: 0 | EJ55: =$G55*EI55 -> 0 | EM55: =$G55*EL55 -> 0 | EP55: =$G55*EO55 -> 0 | FW55: =$G55*FV55 -> 0 | FZ55: =$G55*FY55 -> 0 | GC55: =$G55*GB55 -> 0 | UM55: 36 | UN55: =$G55*UM55 -> 0 | UQ55: =$G55*UP55 -> 0
A56: 3.5.2 | C56: B | D56: debljina d=12 cm | E56: thickness d=12 cm | F56: m2 | G56: =CENA!G47 -> 0 | H56: 468.72 | I56: 0 | K56: =$G56*J56 -> 0 | N56: 0 | P56: 119.04 | Q56: =$G56*P56 -> 0 | T56: =$G56*S56 -> 0 | DE56: 0 | DF56: =$G56*DE56 -> 0 | DH56: 0 | DI56: =$G56*DH56 -> 0 | DK56: 148.8 | DL56: =$G56*DK56 -> 0 | DN56: 0 | DO56: =$G56*DN56 -> 0 | DR56: =$G56*DQ56 -> 0 | DT56: 0 | DU56: =$G56*DT56 -> 0 | DW56: 200.88 | DX56: =$G56*DW56 -> 0 | DZ56: 0 | EA56: =$G56*DZ56 -> 0 | ED56: =$G56*EC56 -> 0 | EF56: 0 | EG56: 0 | EI56: 0 | EJ56: 0 | EM56: =$G56*EL56 -> 0 | EP56: =$G56*EO56 -> 0 | FW56: =$G56*FV56 -> 0 | FZ56: =$G56*FY56 -> 0 | GC56: =$G56*GB56 -> 0 | UN56: =$G56*UM56 -> 0 | UQ56: =$G56*UP56 -> 0
A57: 3.5.3 | C57: C | D57: debljina d=14 cm | E57: thickness d=14 cm | F57: m2 | G57: =CENA!G48 -> 0 | H57: 77.76 | I57: 0 | K57: =$G57*J57 -> 0 | N57: 0 | Q57: =$G57*P57 -> 0 | T57: =$G57*S57 -> 0 | DE57: 0 | DF57: =$G57*DE57 -> 0 | DH57: 0 | DI57: =$G57*DH57 -> 0 | DK57: 0 | DL57: =$G57*DK57 -> 0 | DN57: 0 | DO57: =$G57*DN57 -> 0 | DR57: =$G57*DQ57 -> 0 | DT57: 0 | DU57: =$G57*DT57 -> 0 | DW57: 0 | DX57: =$G57*DW57 -> 0 | DZ57: 0 | EA57: =$G57*DZ57 -> 0 | ED57: =$G57*EC57 -> 0 | EF57: 0 | EG57: 0 | EI57: 0 | EJ57: 0 | EM57: =$G57*EL57 -> 0 | EP57: =$G57*EO57 -> 0 | FW57: =$G57*FV57 -> 0 | FZ57: =$G57*FY57 -> 0 | GC57: =$G57*GB57 -> 0 | UN57: =$G57*UM57 -> 0 | UP57: 77.76 | UQ57: =$G57*UP57 -> 0
A58: 3.6 | B58: K | C58: 6 | D58: Parna brana kontrola vodene pare ispod termoizolacije | E58: Vapor barrier control of water vapor below the insulation | F58: m2 | G58: =CENA!G49 -> 0 | H58: 1275 | I58: 0 | J58: 150 | K58: =$G58*J58 -> 0 | N58: 0 | P58: 150 | Q58: =$G58*P58 -> 0 | T58: =$G58*S58 -> 0 | DE58: 0 | DF58: =$G58*DE58 -> 0 | DH58: 0 | DI58: =$G58*DH58 -> 0 | DK58: 225 | DL58: =$G58*DK58 -> 0 | DN58: 0 | DO58: =$G58*DN58 -> 0 | DR58: =$G58*DQ58 -> 0 | DT58: 150 | DU58: =$G58*DT58 -> 0 | DW58: 300 | DX58: =$G58*DW58 -> 0 | DZ58: 0 | EA58: =$G58*DZ58 -> 0 | EC58: 150 | ED58: =$G58*EC58 -> 0 | EF58: 0 | EG58: 0 | EI58: 0 | EJ58: 0 | EM58: =$G58*EL58 -> 0 | EP58: =$G58*EO58 -> 0 | FW58: =$G58*FV58 -> 0 | FZ58: =$G58*FY58 -> 0 | GC58: =$G58*GB58 -> 0 | UN58: =$G58*UM58 -> 0 | UP58: 150 | UQ58: =$G58*UP58 -> 0
A59: 3.7 | B59: K | C59: 7 | D59: Čamova rezana građa različitog preseka dužine 400 cm | E59: Fir lumber of different cross-section length 400 cm | F59: / | G59: / | H59: / | I59: / | J59: / | K59: / | M59: / | N59: / | P59: / | Q59: / | S59: / | T59: / | DE59: / | DF59: / | DH59: / | DI59: / | DK59: / | DL59: / | DN59: / | DO59: / | DQ59: / | DR59: / | DT59: / | DU59: / | DW59: / | DX59: / | DZ59: / | EA59: / | EC59: / | ED59: / | EF59: / | EG59: / | EI59: / | EJ59: / | EL59: / | EM59: / | EO59: / | EP59: / | FV59: / | FW59: / | FY59: / | FZ59: / | GB59: / | GC59: / | UM59: / | UN59: / | UP59: / | UQ59: /
A60: 3.7.1 | C60: A | D60: Rog/Venčanica/Raspinjača 10/12 cm | E60: rafters / wall plate / ridge collar 10/12 cm | F60: m3 | G60: =CENA!G51 -> 0 | H60: =J60+M60+P60+S60+AQ60+CJ60+DK60+FD60+V60+Y60+AB60+AE60+AH60+AK60+AN60+AT60+AW60+AZ60+BC60+BF60+BI60+BL60+BO60+BR60+BU60+BX60+CA60+CD60+CG60+CM60+CP60+CS60+CV60+CY60+DB60+DE60+DH60+DN60+DQ60+DT60+DW60+DZ60+EC60+EF60+EI60+EL60+EO60+ER60+EU60+EX60+FA60+FG60+FJ60+FM60+FP60+FS60+FV60+FY60+GB60+GE60+GH60+GK60+GN60+GQ60+GT60+GW60+GZ60+HC60+HF60+HI60+HL60+HO60+HR60+HU60+HX60+IA60+ID60+IG60+IJ60+IM60+IP60+IS60+IV60+IY60+JB60+JE60+JH60+JK60+JN60+JQ60+JT60+JW60+JZ60+KC60+KF60+KI60+KL60+KO60+KR60+KU60+KX60+LA60+LD60+LG60+LJ60+LM60+LP60+LS60+LV60+LY60+MB60+ME60+MH60+MK60+MN60+MQ60+MT60+MW60+MZ60+NC60+NF60+NI60+NL60+NO60+NR60+NU60+NX60+OA60+OD60+OG60+OJ60+OM60+OP60+OS60+OV60+OY60+PB60+PE60+PH60+PK60+PN60+PQ60+PT60+PW60+PZ60+QC60+QF60+QI60+QL60+QO60+QR60+QU60+QX60+RA60+RD60+RG60+RJ60+RM60+RP60+RS60+RV60+RY60+SB60+SE60+SH60+SK60+SN60+SQ60+ST60+SW60+SZ60+TC60+TF60+TI60+TL60+TO60+TR60+TU60+TX60+UA60+UD60+UG60+UJ60+UM60+UP60+US60 -> 4.896 | I60: =G60*H60 -> 0 | K60: =$G60*J60 -> 0 | L60: =J60/$UW$60 -> 0 | N60: =$G60*M60 -> 0 | O60: =M60/$UW$60 -> 0 | Q60: =$G60*P60 -> 0 | R60: =P60/$UW$60 -> 0 | T60: =$G60*S60 -> 0 | U60: =S60/$UW$60 -> 0 | DE60: 0 | DF60: =$G60*DE60 -> 0 | DG60: =DE60/$UW$60 -> 0 | DH60: 0 | DI60: =$G60*DH60 -> 0 | DJ60: =DH60/$UW$60 -> 0 | DK60: 0.48 | DL60: =$G60*DK60 -> 0 | DM60: =DK60/$UW$60 -> 10 | DN60: 0 | DO60: =$G60*DN60 -> 0 | DP60: =DN60/$UW$60 -> 0 | DR60: =$G60*DQ60 -> 0 | DS60: =DQ60/$UW$60 -> 0 | DT60: 0 | DU60: =$G60*DT60 -> 0 | DV60: =DT60/$UW$60 -> 0 | DW60: 0 | DX60: =$G60*DW60 -> 0 | DY60: =DW60/$UW$60 -> 0 | DZ60: 0 | EA60: =$G60*DZ60 -> 0 | EB60: =DZ60/$UW$60 -> 0 | ED60: =$G60*EC60 -> 0 | EE60: =EC60/$UW$60 -> 0 | EF60: 1.536 | EG60: =$G60*EF60 -> 0 | EH60: =EF60/$UW$60 -> 32 | EI60: 0 | EJ60: =$G60*EI60 -> 0 | EK60: =EI60/$UW$60 -> 0 | EL60: 1.056 | EM60: =$G60*EL60 -> 0 | EN60: =EL60/$UW$60 -> 22 | EO60: 0.96 | EP60: =$G60*EO60 -> 0 | EQ60: =EO60/$UW$60 -> 20 | FW60: =$G60*FV60 -> 0 | FX60: =FV60/$UW$60 -> 0 | FZ60: =$G60*FY60 -> 0 | GA60: =FY60/$UW$60 -> 0 | GB60: 0.864 | GC60: =$G60*GB60 -> 0 | GD60: =GB60/$UW$60 -> 18 | UN60: =$G60*UM60 -> 0 | UO60: =UM60/$UW$60 -> 0 | UQ60: =$G60*UP60 -> 0 | UR60: =UP60/$UW$60 -> 0 | UW60: 0.048
A61: 3.7.2 | C61: B | D61: Rog/Stub/Grebenjača/Slemenja. 12/14 cm | E61: column / pile / hip rafter / ridge 12/14 cm | F61: m3 | G61: =CENA!G52 -> 0 | H61: 7.705 | I61: 0 | J61: 1.005 | K61: =$G61*J61 -> 0 | L61: =J61/$UW$61 -> 14.95535714 | M61: 1.474 | N61: 0 | O61: =M61/$UW$61 -> 21.93452381 | Q61: =$G61*P61 -> 0 | R61: =P61/$UW$61 -> 0 | S61: 0.402 | T61: =$G61*S61 -> 0 | U61: =S61/$UW$61 -> 5.982142857 | DE61: 0 | DF61: =$G61*DE61 -> 0 | DG61: =DE61/$UW$61 -> 0 | DH61: 0.402 | DI61: =$G61*DH61 -> 0 | DJ61: =DH61/$UW$61 -> 5.982142857 | DK61: 0 | DL61: =$G61*DK61 -> 0 | DM61: =DK61/$UW$61 -> 0 | DN61: 0 | DO61: =$G61*DN61 -> 0 | DP61: =DN61/$UW$61 -> 0 | DR61: =$G61*DQ61 -> 0 | DS61: =DQ61/$UW$61 -> 0 | DT61: 0 | DU61: =$G61*DT61 -> 0 | DV61: =DT61/$UW$61 -> 0 | DW61: 0.402 | DX61: =$G61*DW61 -> 0 | DY61: =DW61/$UW$61 -> 5.982142857 | DZ61: 0.536 | EA61: =$G61*DZ61 -> 0 | EB61: =DZ61/$UW$61 -> 7.976190476 | EC61: 0.536 | ED61: =$G61*EC61 -> 0 | EE61: =EC61/$UW$61 -> 7.976190476 | EF61: 0 | EG61: 0 | EH61: =EF61/$UW$61 -> 0 | EI61: 0 | EJ61: 0 | EK61: =EI61/$UW$61 -> 0 | EL61: 0.201 | EM61: =$G61*EL61 -> 0 | EN61: =EL61/$UW$61 -> 2.991071429 | EO61: 0.67 | EP61: =$G61*EO61 -> 0 | EQ61: =EO61/$UW$61 -> 9.970238095 | FV61: 1.072 | FW61: =$G61*FV61 -> 0 | FX61: =FV61/$UW$61 -> 15.95238095 | FY61: 0.134 | FZ61: =$G61*FY61 -> 0 | GA61: =FY61/$UW$61 -> 1.994047619 | GB61: 0.603 | GC61: =$G61*GB61 -> 0 | GD61: =GB61/$UW$61 -> 8.973214286 | UM61: 0.268 | UN61: =$G61*UM61 -> 0 | UO61: =UM61/$UW$61 -> 3.988095238 | UQ61: =$G61*UP61 -> 0 | UR61: =UP61/$UW$61 -> 0 | UW61: 0.0672
A62: 3.7.3 | C62: C | D62: Stub/Grebenjača 14/14 cm | E62: column / hip rafter 14/14 cm | F62: m3 | G62: =CENA!G53 -> 0 | H62: 0 | I62: 0 | K62: =$G62*J62 -> 0 | L62: =J62/$UW$62 -> 0 | N62: 0 | O62: =M62/$UW$62 -> 0 | Q62: =$G62*P62 -> 0 | R62: =P62/$UW$62 -> 0 | T62: =$G62*S62 -> 0 | U62: =S62/$UW$62 -> 0 | DE62: 0 | DF62: =$G62*DE62 -> 0 | DG62: =DE62/$UW$62 -> 0 | DH62: 0 | DI62: =$G62*DH62 -> 0 | DJ62: =DH62/$UW$62 -> 0 | DK62: 0 | DL62: =$G62*DK62 -> 0 | DM62: =DK62/$UW$62 -> 0 | DN62: 0 | DO62: =$G62*DN62 -> 0 | DP62: =DN62/$UW$62 -> 0 | DR62: =$G62*DQ62 -> 0 | DS62: =DQ62/$UW$62 -> 0 | DT62: 0 | DU62: =$G62*DT62 -> 0 | DV62: =DT62/$UW$62 -> 0 | DW62: 0 | DX62: =$G62*DW62 -> 0 | DY62: =DW62/$UW$62 -> 0 | DZ62: 0 | EA62: =$G62*DZ62 -> 0 | EB62: =DZ62/$UW$62 -> 0 | ED62: =$G62*EC62 -> 0 | EE62: =EC62/$UW$62 -> 0 | EF62: 0 | EG62: 0 | EH62: =EF62/$UW$62 -> 0 | EI62: 0 | EJ62: 0 | EK62: =EI62/$UW$62 -> 0 | EM62: =$G62*EL62 -> 0 | EN62: =EL62/$UW$62 -> 0 | EP62: =$G62*EO62 -> 0 | EQ62: =EO62/$UW$62 -> 0 | FW62: =$G62*FV62 -> 0 | FX62: =FV62/$UW$62 -> 0 | FZ62: =$G62*FY62 -> 0 | GA62: =FY62/$UW$62 -> 0 | GC62: =$G62*GB62 -> 0 | GD62: =GB62/$UW$62 -> 0 | UN62: =$G62*UM62 -> 0 | UO62: =UM62/$UW$62 -> 0 | UQ62: =$G62*UP62 -> 0 | UR62: =UP62/$UW$62 -> 0 | UW62: 0.0784
... 73 more rows

Sheet vendors list
A2: KOD/ CODE | D2: Opis građevinskog materijala | E2: Description of building materials | F2: Jed. prod./ UNIT | G2: Proizvođač/ Manufacturer | H2: Oznaka proizvoda/ Product label | I2: Napomena/ Remark
A4: 1 | B4: A | D4: OSNOVNI GRAĐEVINSKI MATERIJAL | E4: BASIC BUILDING MATERIALS
A5: 1.1 | B5: O | C5: 1 | D5: Cement za betone do MB 30 | E5: Cement for concrete up to 30 MB | F5: kg
A6: 1.2 | B6: O | C6: 2 | D6: Hidratisani gašeni kreč pripremljen u prahu | E6: Hydrated slaked lime powdered | F6: kg
A7: 1.3 | B7: O | C7: 3 | D7: Rebrasto betonsko gvožđe (RA) | E7: Ribbed reinforcement steel | F7: / | G7: =KORISNICI!G16 -> / | H7: =KORISNICI!H16 -> / | I7: =KORISNICI!I16 -> /
A8: 1.3.1 | C8: A | D8: 10 mm - dužine 12m | E8: 10 mm - length 12m | F8: kg
A9: 1.3.2 | C9: B | D9: 12 mm - dužine 12m | E9: 12 mm - length 12m | F9: kg
A10: 1.3.3 | C10: C | D10: 14 mm - dužine 12m | E10: 14 mm - length 12m | F10: kg
A11: 1.3.4 | C11: D | D11: 16 mm - dužine 12m | E11: 16 mm - length 12m | F11: kg
A12: 1.4 | B12: O | C12: 4 | D12: Glatko betonsko gvožđe (GA) | E12: Glibly reinforcement steel | F12: / | G12: =KORISNICI!G21 -> / | H12: =KORISNICI!H21 -> / | I12: =KORISNICI!I21 -> /
A13: 1.4.1 | C13: B | D13: 8 mm - dužine 12m | E13: 8 mm - length 12m | F13: kg
A14: 1.4.2 | C14: C | D14: 10 mm - dužine 12m | E14: 10 mm - length 12m | F14: kg
A15: 1.5 | B15: O | C15: 5 | D15: Armaturna betonska mreža dim. (dxš) 6000 x 2150 = 12,9 m2/kom | E15: Reinforcement mesh dim. (lxw) 6000 x 2150 = 12,9 m2/pcs | F15: / | G15: =KORISNICI!G24 -> / | H15: =KORISNICI!H24 -> / | I15: =KORISNICI!I24 -> /
A16: 1.5.1 | C16: A | D16: Q84 /4x4/150x150/ | E16: Q84 /4x4/150x150/ | F16: kg
A17: 1.5.2 | C17: B | D17: Q131 /5x5/150x150/ | E17: Q131 /5x5/150x150/ | F17: kg
A18: 1.5.3 | C18: C | D18: Q188 /6x6/150x150/ | E18: Q188 /6x6/150x150/ | F18: kg
A19: 1.5.4 | C19: D | D19: Q283 /6x6/100x100/ | E19: Q283 /6x6/100x100/ | F19: kg
A20: 1.5.5 | C20: E | D20: Q335 /8x8/150x150/ | E20: Q335 /8x8/150x150/ | F20: kg
A22: 2 | B22: Z | D22: MATERIJAL ZA ZIDANJE, MALTERISANJE, GLETOVANJE I FARBANJE | E22: MASONRY, PLASTERING FAIRING AND PAINTING MATERIAL
A23: 2.1 | B23: Z | C23: 1 | D23: Giter blok (d/š/v) 250x190x190 mm | E23: Gitter block (l/w/h) 250x190x190 mm | F23: kom/pcs
A24: 2.2 | B24: Z | C24: 2 | D24: Giter polublok (12cm) (d/š/v) 250x120x190mm | E24: Gitter half block (12cm) (l/w/h) 250x120x190mm | F24: kom/pcs
A25: 2.3 | B25: Z | C25: 3 | D25: Opeka puna (d/š/v) 250x120x65 mm | E25: Brick (full-without holes) (l/w/h) 250x120x65 mm | F25: kom/pcs
A26: 2.4 | B26: Z | C26: 4 | D26: Blok od porobetona za pregradni zid (d/š/v) 625x200x200 mm | E26: Aerated concrete block for partition wall (l/w/h) 625x200x200 mm | F26: kom/pcs
A27: 2.5 | B27: Z | C27: 5 | D27: Fert nosači (gredice) Dužina nosača je jednaka dužini binora = širina otvora između zidova + 30 cm. Broj gredica = dužina prostorije x 0,40 | E27: Fert beams Boom length is equal to the length of Binor = width of the openings between the walls + 30 cm. Number of beams = length of room x 0.40 | F27: / | G27: =KORISNICI!G36 -> / | H27: =KORISNICI!H36 -> / | I27: =KORISNICI!I36 -> /
A28: 2.5.1 | C28: A | D28: 0,00-3,90 m | E28: 0,00-3,90 m | F28: m1
A29: 2.5.2 | C29: B | D29: 3,91-4,50 m | E29: 3,91-4,50 m | F29: m1
A30: 2.5.3 | C30: C | D30: 4,51-4,90 m | E30: 4,51-4,90 m | F30: m1
A31: 2.5.4 | C31: D | D31: 4,91-5,30 m | E31: 4,91-5,30 m | F31: m1
A32: 2.5.5 | C32: E | D32: 5,31-5,90 m | E32: 5,31-5,90 m | F32: m1
A33: 2.5.6 | C33: F | D33: 5,91-6,30 m | E33: 5,91-6,30 m | F33: m1
A34: 2.6 | B34: Z | C34: 6 | D34: Fert ispuna (d/š/v) 245x285/275x160 mm | E34: Fert fillings (l/w/h) 245x285/275x160 mm | F34: kom/pcs
A35: 2.7 | B35: Z | C35: 7 | D35: Malter za zidanje Pripremljeno krečno - cementno vezivo | E35: Mortar for masonry Prepared lime - cement binder | F35: kg
A36: 2.8 | B36: Z | C36: 8 | D36: Malter za malterisanje Pripremljeno krečno - cementno vezivo | E36: Mortar for plastering Prepared lime - cement binder | F36: kg
A37: 2.9 | B37: Z | C37: 9 | D37: Krečna glet masa Bezcementna krečna masa za gletovanje | E37: Lime smoothing mass No cement lime compound for smoothing | F37: kg
A38: 2.10 | B38: Z | C38: 10 | D38: Poludisperzivna boja Poludisperziona boja razrediva vodom | E38: Semi dispersion paint | F38: kg
A40: 3 | B40: K | D40: MATERIJAL ZA KROVNU KONSTRUKCIJU, KROVNI POKRIVAČ, OSB I GIPS KARONSKE TABLE | E40: ROOF CONSTRUCTION AND ROOFING MATERIAL, OSB AND PLASTERBOARD TABLE
A41: 3.1 | B41: K | C41: 1 | D41: Presovani glineni crep I klase dimenzija: 400-450x245-275 mm | E41: Pressed clay tiles class 1 dim: 400-450x245-275 mm | F41: kom/pcs
A42: 3.2 | B42: K | C42: 3 | D42: Biber crep I klase dimenzija: 180x380 mm | E42: Biber clay tiles class 1 dim: 180x380 mm | F42: kom/pcs
A43: 3.3 | B43: K | C43: 2 | D43: Slemeni crep I klase (žljebnjak) | E43: Ridge clay tiles class 1 | F43: kom/pcs
A44: 3.4 | B44: K | C44: 4 | D44: Paropropusna i vodonepropusna krovna folija kontrola vodene pare iznad termoizolacije | E44: Vapour permeable and waterproof roof sheeting control of water vapor above the insulation | F44: m2
A45: 3.5 | B45: K | C45: 5 | D45: Staklena mineralna vuna termoizolacija potkrovlja između rogova | E45: Glass Mineral Wool loft insulation between the rafters | F45: / | G45: =KORISNICI!G54 -> / | H45: =KORISNICI!H54 -> / | I45: =KORISNICI!I54 -> /
A46: 3.5.1 | C46: A | D46: debljina d=10 cm | E46: thickness d=10 cm | F46: m2
A47: 3.5.2 | C47: B | D47: debljina d=12 cm | E47: thickness d=12 cm | F47: m2
A48: 3.5.3 | C48: C | D48: debljina d=14 cm | E48: thickness d=14 cm | F48: m2
A49: 3.6 | B49: K | C49: 6 | D49: Parna brana kontrola vodene pare ispod termoizolacije | E49: Vapor barrier control of water vapor below the insulation | F49: m2
A50: 3.7 | B50: K | C50: 7 | D50: Čamova rezana građa različitog preseka dužine 400 cm | E50: Fir lumber of different cross-section length 400 cm | F50: / | G50: =KORISNICI!G59 -> / | H50: =KORISNICI!H59 -> / | I50: =KORISNICI!I59 -> /
A51: 3.7.1 | C51: A | D51: Rog/Venčanica/Raspinjača 10/12 cm | E51: rafters / wall plate / ridge collar 10/12 cm | F51: m3
A52: 3.7.2 | C52: B | D52: Rog/Stub/Grebenjača/Slemenja. 12/14 cm | E52: column / pile / hip rafter / ridge 12/14 cm | F52: m3
A53: 3.7.3 | C53: C | D53: Stub/Grebenjača 14/14 cm | E53: column / hip rafter 14/14 cm | F53: m3
A54: 3.7.4 | C54: H | D54: Tavanjače 18/26 cm | E54: attic beams 18/26 cm | F54: m3
A55: 3.8 | B55: K | C55: 8 | D55: Čamova rezana građa različitog preseka dužine 600 cm | E55: Fir lumber of different cross-section length 600 cm | F55: / | G55: =KORISNICI!G64 -> / | H55: =KORISNICI!H64 -> / | I55: =KORISNICI!I64 -> /
A56: 3.8.1 | C56: A | D56: Rog/Venčanica/Raspinjača 10/12 cm | E56: rafters / wall plate / ridge collar 10/12 cm | F56: m3
A57: 3.8.2 | C57: B | D57: Rog/Stub/Grebenjača/Slemenja. 12/14 cm | E57: column / pile / hip rafter / ridge 12/14 cm | F57: m3
A58: 3.8.3 | C58: C | D58: Stub/Grebenjača 14/14 cm | E58: column / hip rafter 14/14 cm | F58: m3
A59: 3.8.4 | C59: D | D59: Rožnjača 14/16 cm | E59: Purlin 14/16 cm | F59: m3
A60: 3.8.5 | C60: E | D60: Kosnik/Pajanta 10/10 cm | E60: Strut 10/10 cm | F60: m3
A61: 3.8.6 | C61: F | D61: Klešta 6/12 cm | E61: Collar tie 6/12 cm | F61: m3
A62: 3.8.7 | C62: G | D62: Krovna štafla 5/8 cm | E62: Roof battens 5/8 cm | F62: m3
A63: 3.8.8 | C63: H | D63: Tavanjače 18/26 cm | E63: attic beams 18/26 cm | F63: m3
A64: 3.9 | B64: K | C64: 9 | D64: Građevinska daska - fosna 4,8/25/400 cm | E64: Fir board 4,8/25/400 cm | F64: m3
A65: 3.10 | B65: K | C65: 10 | D65: Krovna daska od čamove rezane građe 2,4-2,5/15 cm, isporučuje se dužine l=3,0 metra | E65: Roof fir board 2,4-2,5/15 cm, lenght l=3,0 m | F65: m3
A66: 3.11 | B66: K | C66: 11 | D66: Krovna letva od čamove rezane građe 3 / 5 cm , isporučuje se dužine l=3,0 metra | E66: Fir batten 3 / 5 cm , lenght l=3,0 m | F66: m1
A67: 3.12 | B67: K | C67: 12 | D67: OSB3 vlagootporne konstruktivne ploče d=18 mm / dim. 2440 x 1220 | E67: OSB3 moisture resistant structural panels d=18 mm / dim. 2440 x 1220 | F67: kom/pcs
A68: 3.13 | B68: K | C68: 13 | D68: Standardne gips kartonske ploče - Tip A dimenzije: 1200-1250 x 2000 mm | E68: Standard plasterboard table - Type A dim: 1200-1250 x 2000 mm | F68: kom/pcs
A69: 3.14 | B69: K | C69: 14 | D69: Vlagootporne gips kartonske ploče - Tip H2 dimenzije: 1200-1250 x 2000 mm | E69: Moisture resistant Plasterboard - Type H2 dim: 1200-1250 x 2000 mm | F69: kom/pcs
A70: 3.15 | B70: K | C70: 15 | D70: Čelični pocinkovani i farbani olučni elementi prečnika: Ø 100 mm dužine 600 cm | E70: Galvanized steel and painted gutter elements diameter: Ø 100 mm length 600 cm | F70: / | G70: =KORISNICI!G79 -> / | H70: =KORISNICI!H79 -> / | I70: =KORISNICI!I79 -> /
A71: 3.15.1 | C71: A | D71: Horizontalni polukružni | E71: horizontal semicircular gutter | F71: kom/pcs
A72: 3.15.2 | C72: B | D72: Vertikalni kružni oluk | E72: Vertical circular gutter | F72: kom/pcs
A74: 4 | B74: P | D74: MATERIJAL ZA PODOVE, LAMINAT, PLOČICE I XPS | E74: FLOORING, LAMINATE, TILES AND XPS
A75: 4.1 | B75: P | C75: 1 | D75: Unutrašnje podne keramičke pločice Min. dimenzije pločica: 200x300 mm | E75: Floor tiles for inside Min. tile size: 200x300 mm | F75: m2
A76: 4.2 | B76: P | C76: 2 | D76: Unutrašnje zidne keramičke pločice Min. dimenzije pločica: 200x300 mm | E76: Wall tiles for inside Min. tile size: 200x300 mm | F76: m2
A77: 4.3 | B77: P | C77: 3 | D77: Lepak za keramičke pločice Fleksibilni, polimer-cementni lepak | E77: Glue for ceramic tiles Flexible, polymer-cement glue | F77: kg
A78: 4.4 | B78: P | C78: 4 | D78: Fleksibilna masa za fugovanje Vodoodbojna fug masa na bazi cementa | E78: Flexible mass for grouting Waterproof grout cement based | F78: kg
A79: 4.5 | B79: P | C79: 5 | D79: Laminat - jakopresovani (HLP) sa klik sistemom, dezen: hrast natur (prirodni) | E79: Laminate (HLP) with click system, design: oak natural (natural) | F79: m2
A80: 4.6 | B80: P | C80: 6 | D80: Lajsne za laminat od medijapana materijal: medijapan / MDF | E80: Moldings for laminate MDF Material: MDF / MDF | F80: m1
A81: 4.7 | B81: P | C81: 7 | D81: Podloga za laminat od polietilenske pene Sunđerasta podloga za laminat | E81: The base for laminate of polyethylene foam Foam base for laminate | F81: m2
A82: 4.8 | B82: P | C82: 8 | D82: Cementni suvi estrih (cementna košuljica). Pripremljeno cementno praškasto vezivo | E82: Cement dry screed (cement screed) Prepared cement powder binder | F82: kg
A83: 4.9 | B83: P | C83: 9 | D83: Građevinska PVC folija Za razdvajanje cementne košuljice od termo izolacije. | E83: PVC foil for construction. To separate the cement screed of thermal insulation. | F83: m2
A84: 4.10 | B84: P | C84: 10 | D84: Stirodur (XPS za izolaciju na podovima) ploča od ekstrudirane polistirenske pene | E84: Stirodur (XPS insulation for floors) panel of extruded polystyrene foam | F84: / | G84: =KORISNICI!G93 -> / | H84: =KORISNICI!H93 -> / | I84: =KORISNICI!I93 -> /
A85: 4.10.1 | C85: A | D85: debljine d=2 cm | E85: d=2 cm | F85: m2
A86: 4.10.2 | C86: B | D86: debljine d=5 cm | E86: d=5 cm | F86: m2
A88: 5 | B88: F | D88: MATERIJAL ZA IZRADU FASADE | E88: FACADE MATERIAL
A89: 5.1 | B89: F | C89: 1 | D89: EPS za termoizolaciju fasadnih zidova ploča od ekspandiranog polistirena | E89: Thermal insulation for facade walls (EPS) plates made of expanded polystyrene | F89: / | G89: =KORISNICI!G98 -> / | H89: =KORISNICI!H98 -> / | I89: =KORISNICI!I98 -> /
A90: 5.1.1 | C90: A | D90: debljina d=8 cm | E90: d=8 cm | F90: m2
A91: 5.1.2 | C91: B | D91: debljina d=10 cm | E91: d=10 cm | F91: m2
A92: 5.1.3 | C92: C | D92: debljina d=12 cm | E92: d=12 cm | F92: m2
A93: 5.1.4 | C93: D | D93: debljina d=14 cm | E93: d=14 cm | F93: m2
A94: 5.2 | B94: F | C94: 2 | D94: GrađevinskI lepak za EPS ploče cementni lepak namenjen za lepljenje ploča od ekspandiranog polistirena (EPS) i armiranje armaturne (rabic) mrežice | E94: Construction glue for EPS plates cement adhesive for gluing plates made of expanded polystyrene (EPS) and reinforcing wire (rabic) net | F94: kg
A95: 5.3 | B95: F | C95: 3 | D95: Armaturna (rabic) staklena mrežica. Visokokvalitetna alkalno postojana staklena mrežica | E95: Reinforcing (rabic) fiberglass mesh High quality alkali resistant fiberglass mesh | F95: m2
A96: 5.4 | B96: F | C96: 4 | D96: Aktivni predpremaz pre nanošenja tankoslojnog fasadnog maltera. predpremaz za izjednačavanje upijanja - podloga | E96: Active primer before applying the thin-layer plaster primer for the equalization of absorption surface | F96: kg
A97: 5.5 | B97: F | C97: 5 | D97: Fasadni tankoslojni akrilni malter Završni malter u pastoznom stanju, namenjen za zaštitu fasadnih zidnih površina | E97: Facade thin-layer acrylic plaster Finishing plaster in paste-like state, intended for the protection of facade wall surfaces | F97: / | G97: =KORISNICI!G106 -> / | H97: =KORISNICI!H106 -> / | I97: =KORISNICI!I106 -> /
A98: 5.5.1 | C98: A | D98: boja približna RAL 1034 -kajsija | E98: color similar to RAL 1034-apricot | F98: kg
A99: 5.5.2 | C99: B | D99: boja približna RAL 6005 -pastelno zelena | E99: color similar to RAL 6005 pastel-green | F99: kg
A100: 5.5.3 | C100: C | D100: boja približna RAL 5023 -pastelno plava | E100: color similar to RAL 5023 pastel-blue | F100: kg
A101: 5.5.4 | C101: D | D101: boja približna RAL 3011 -pastelno crvena | E101: color similar to RAL 3011 pastel-red | F101: kg
A102: 5.5.5 | C102: E | D102: boja približna RAL 8002 -braon | E102: color similar to RAL 8002 brown | F102: kg
A104: 6 | B104: H | D104: MATERIJAL ZA HIDRO IZOLACIJE | E104: WATERPROOFING MATERIAL
A105: 6.1 | B105: H | C105: 1 | D105: Bitulit (prethodni premaz za hidroizolaciju) Upotrebljava se u isporučenom stanju (hladan postupak ) bez zagrevanja | E105: Bitulit (previous coating for waterproofing) It is used as delivered (cold process) without heating | F105: kg
A106: 6.2 | B106: H | C106: 2 | D106: Poliazbitol (hladni premaz za hidroizolaciju) Upotrebljava se u isporučenom stanju (hladan postupak) bez zagrevanja | E106: POLYASBITOL (cold coating for waterproofing) It is used as delivered (cold process) without heating | F106: kg
A107: 6.3 | B107: H | C107: 3 | D107: Ter papir Bitumenska hidroizolaciona traka. | E107: Ter paper Bituminous waterproofing tape. | F107: m2
A108: 6.4 | B108: H | C108: 4 | D108: Kondor V-3 (hidroizolaciona traka) Plastomer-bitumenska traka, uložak stakleni voal, debljina: ≥ 3 mm | E108: Condor V-3 (waterproof tape) Plastomer-bituminous tape, glass mat, thickness: ≥ 3 mm | F108: m2
A110: 7 | B110: S | D110: STOLARIJA | E110: DOORS AND WINDOWS
A111: 7.1 | B111: S | C111: 1 | D111: Ulazna vrata od PVC-a (komplet pozicija). boja profila: bela RAL 9003 broj komora: ≥ 5 komora širina x visina (zidarske mere) | E111: Entrance door of PVC (set position) Profile color: white RAL 9003 Number of chambers: ≥ 5 chambers width x height (masonry measures) | F111: / | G111: =KORISNICI!G120 -> / | H111: =KORISNICI!H120 -> / | I111: =KORISNICI!I120 -> /
A112: 7.1.1 | C112: A | D112: JK 90x210 cm - Leva 90 cm | E112: one wing 90x210 cm - Left 90 cm | F112: kom/pcs
A113: 7.1.2 | C113: B | D113: JK 90x210 cm - Desna 90 cm | E113: one wing 90x210 cm - Right 90 cm | F113: kom/pcs
A114: 7.1.3 | C114: C | D114: DK 120x210 cm - Leva 90+30 cm | E114: two wings 120x210 cm - Left 90+30 cm | F114: kom/pcs
A115: 7.1.4 | C115: D | D115: DK 120x210 cm - Desna 90+30 cm | E115: two wings 120x210 cm - Right 90+30 cm | F115: kom/pcs
A116: 7.2 | B116: S | C116: 2 | D116: Prozori od PVC-a (komplet pozicija). Vertikalno i horizontalno otvaranje, boja profila: bela RAL 9003, broj komora: ≥ 5 komora širina x visina (zidarske mere) | E116: Windows made of PVC (set position) Vertical and horizontal opening, color profile: white RAL 9003, the number of chambers: ≥ 5 chambers width x height (masonry measures) | F116: / | G116: =KORISNICI!G125 -> / | H116: =KORISNICI!H125 -> / | I116: =KORISNICI!I125 -> /
A117: 7.2.1 | C117: A | D117: JK 60x60 cm | E117: one wing 60x60 cm | F117: kom/pcs
A118: 7.2.2 | C118: B | D118: JK 80x80 cm | E118: one wing 80x80 cm | F118: kom/pcs
A119: 7.2.3 | C119: C | D119: JK 80x120 cm | E119: one wing 80x120 cm | F119: kom/pcs
A120: 7.2.4 | C120: D | D120: JK 80x140 cm | E120: one wing 80x140 cm | F120: kom/pcs
A121: 7.2.5 | C121: E | D121: JK 100x120 cm | E121: one wing 100x120 cm | F121: kom/pcs
A122: 7.2.6 | C122: F | D122: JK 100x140 cm | E122: one wing 100x140 cm | F122: kom/pcs
A123: 7.2.7 | C123: G | D123: DK 120x120 cm | E123: two wings 120x120 cm | F123: kom/pcs
A124: 7.2.8 | C124: H | D124: DK 120x140 cm | E124: two wings 120x140 cm | F124: kom/pcs
A125: 7.2.9 | C125: I | D125: DK 140x120 cm | E125: two wings 140x120 cm | F125: kom/pcs
A126: 7.2.10 | C126: J | D126: DK 140x140 cm | E126: two wings 140x140 cm | F126: kom/pcs
A127: 7.2.11 | C127: K | D127: DK 160x120 cm | E127: two wings 160x120 cm | F127: kom/pcs
A128: 7.2.12 | C128: L | D128: DK 160x140 cm | E128: two wings 160x140 cm | F128: kom/pcs
A129: 7.3 | B129: S | C129: 3 | D129: Krovni prozor sa aluminijumskom opšivkom od laminirane i impregnirane čamove građe | E129: Roof window with aluminum flashings of laminated and impregnated fir timber | F129: / | G129: =KORISNICI!G138 -> / | H129: =KORISNICI!H138 -> / | I129: =KORISNICI!I138 -> /
A130: 7.3.1 | C130: A | D130: dimenzije 66 x 118 (širinaxvisina) | E130: 66 x 118 (width x height) | F130: kom/pcs
A131: 7.3.2 | C131: B | D131: dimenzije 78 x 98 (širinaxvisina) | E131: 78 x 98 (width x height) | F131: kom/pcs
A132: 7.3.3 | C132: C | D132: dimenzije 78 x 118 (širinaxvisina) | E132: 78 x 118 (width x height) | F132: kom/pcs
A133: 7.4 | B133: S | C133: 4 | D133: Balkonska vrata od PVC-a (komplet pozicija). boja profila: bela RAL 9003 broj komora: ≥ 5 komora širina x visina (zidarske mere) | E133: Balcony doors from PVC (set position) Profile color: white RAL 9003 Number of chambers: ≥ 5 chambers width x height (masonry measures) | F133: / | G133: =KORISNICI!G142 -> / | H133: =KORISNICI!H142 -> / | I133: =KORISNICI!I142 -> /
A134: 7.4.1 | C134: A | D134: JK 90x210 cm - Leva | E134: one wing 90x210 cm - Left | F134: kom/pcs
A135: 7.4.2 | C135: B | D135: JK 90x210 cm - Desna | E135: one wing 90x210 cm - Right | F135: kom/pcs
A136: 7.4.3 | C136: C | D136: DK 140x210 cm | E136: two wings 140x210 cm | F136: kom/pcs
A137: 7.5 | B137: S | C137: 5 | D137: Unutrašnja vrata sa ispunom od kartonskog saća (komplet pozicija). širina x visina (spoljna mera futera) | E137: Internal doors filled with cardboard honeycomb (set position) width x height (external measures footer) | F137: / | G137: =KORISNICI!G146 -> / | H137: =KORISNICI!H146 -> / | I137: =KORISNICI!I146 -> /
A138: 7.5.1 | C138: A | D138: 70x205 cm - Leva (dubina štoka 0-16 cm) | E138: 70x205 cm - Left (depth door 0-16 cm) | F138: kom/pcs
A139: 7.5.2 | C139: B | D139: 70x205 cm - Leva (dubina štoka 16-30 cm) | E139: 70x205 cm - Left (depth door 16-30 cm) | F139: kom/pcs
A140: 7.5.3 | C140: C | D140: 70x205 cm - Desna (dubina štoka 0-16 cm) | E140: 70x205 cm - Right (depth door 0-16 cm) | F140: kom/pcs
A141: 7.5.4 | C141: D | D141: 70x205 cm - Desna (dubina štoka 16-30 cm) | E141: 70x205 cm - Right (depth door 16-30 cm) | F141: kom/pcs
A142: 7.5.5 | C142: E | D142: 80x205 cm - Leva (dubina štoka 0-16 cm) | E142: 80x205 cm - Left (depth door 0-16 cm) | F142: kom/pcs
A143: 7.5.6 | C143: F | D143: 80x205 cm - Leva (dubina štoka 16-30 cm) | E143: 80x205 cm - Left (depth door 16-30 cm) | F143: kom/pcs
A144: 7.5.7 | C144: G | D144: 80x205 cm - Desna (dubina štoka 0-16 cm) | E144: 80x205 cm - Right (depth door 0-16 cm) | F144: kom/pcs
A145: 7.5.8 | C145: H | D145: 80x205 cm - Desna (dubina štoka 16-30 cm) | E145: 80x205 cm - Right (depth door 16-30 cm) | F145: kom/pcs
A146: 7.5.9 | C146: I | D146: 90x205 cm - Leva (dubina štoka 0-16 cm) | E146: 90x205 cm - Left (depth door 0-16 cm) | F146: kom/pcs
A147: 7.5.10 | C147: J | D147: 90x205 cm - Leva (dubina štoka 16-30 cm) | E147: 90x205 cm - Left (depth door 16-30 cm) | F147: kom/pcs
A148: 7.5.11 | C148: K | D148: 90x205 cm - Desna (dubina štoka 0-16 cm) | E148: 90x205 cm - Right (depth door 0-16 cm) | F148: kom/pcs
A149: 7.5.12 | C149: L | D149: 90x205 cm - Desna (dubina štoka 16-30 cm) | E149: 90x205 cm - Right (depth door 16-30 cm) | F149: kom/pcs
A151: 8 | B151: D | D151: OSTALA OPREMA I MATERIJAL | E151: OTHER EQUIPMENT AND SUPPLIES
A152: 8.1 | B152: D | C152: 1 | D152: Jednostruki dimnjak prečnika Ф 140 mm. Troslojni montažni dimnjački sistem namenjen za sva ložišta i sve vrste goriva, bez ventilacije. Sastavljen je od: dimnjačke cevi od tehničke keramike, izolacije oko cevi dimnjaka od kamene vune minimalne specifične težine 80kg/m3, spoljneg dimnjačkog plašta od lakog betona, vatrostalnog lepka u kartušama, vatrootpornih i gasnonepropusnih atestiranih troslojnih vratanaca , kondenz posude, priključaka za reviziju i ložišta, krovne ploče od staklo betona, nosača tervola i tvrdih tervol ploča za priključke, ventilacione rešetke, dilatacione rozete od nerđajućeg čelika. Spoljna dimenzija dimnjačkog plašta za fi14cm=32x32cm. | E152: A single chimney diameter 140 mm. Three-layer prefabricated chimney system designed for all furnaces and all types of fuel, with no ventilation. It is composed of: chimney pipe of technical ceramics, pipe insulation around the chimney of stone wool minimum specific weight of 80kg/m3, external chimney mantle of lightweight concrete, refractory adhesive in cartouches, fireproof and gas impermeable certified three-layer side door, condensate pots, connectors for the audit and furnaces, roof tiles of glass concrete girders Tervola and hard tervol plate connections, ventilation grilles, rosettes expansion of stainless steel. The external dimensions of the chimney sleeve fi14cm = 32x32cm. | F152: m1
A154: 9 | B154: V | D154: Vodovod Kanalizacija Oprema | E154: WATER SUPPLY AND SEWAGE
D155: Vodovod | E155: WATER SUPPLY
A156: 9.1 | B156: V | C156: 1 | D156: Vodovodne polietilenske cevi PE 100 PN16 za radni pritisak 16 bara (SDR 11) | E156: Water supply polyethylene pipe PE 100 PN16 the working pressure of 16 bar (SDR 11) | F156: / | G156: =KORISNICI!G165 -> / | H156: =KORISNICI!H165 -> / | I156: =KORISNICI!I165 -> /
A157: 9.1.1 | C157: A | D157: d25 (s min. 2,3) - 3/4" | E157: d25 (s min. 2,3) - 3/4" | F157: m1
A158: 9.1.2 | C158: B | D158: d32 (s min. 3,0) - 1" | E158: d32 (s min. 3,0) - 1" | F158: m1
A159: 9.1.3 | C159: C | D159: d40 (s min. 3,7) - 5/4" | E159: d40 (s min. 3,7) - 5/4" | F159: m1
A160: 9.2 | B160: V | C160: 2 | D160: Vodovodne cevi PP-R 80 PN20 za radni pritisak 20 bara, bele ili zelene boje (materijal: polipropilen-random kapolimer) | E160: Water pipe PP-R 80 PN20 the working pressure of 20 bar, white or green (material: polypropylene random kapolimer) | F160: / | G160: =KORISNICI!G169 -> / | H160: =KORISNICI!H169 -> / | I160: =KORISNICI!I169 -> /
A161: 9.2.1 | C161: B | D161: d20 (s min. 3,4) - 1/2" | E161: d20 (s min. 3,4) - 1/2" | F161: m1
A162: 9.2.2 | C162: C | D162: d25 (s min. 4,2) - 3/4" | E162: d25 (s min. 4,2) - 3/4" | F162: m1
A163: 9.2.3 | C163: D | D163: d32 (s min. 5,4) - 1" | E163: d32 (s min. 5,4) - 1" | F163: m1
A164: 9.3 | B164: V | C164: 3 | D164: Vodomer sa prirubnicama, holenderima i pripadajućom opremom za montažu, za pritisak do 16 bara | E164: water gauge flanges, unions and associated equipment for assembly, for pressure up to 16 bar | F164: / | G164: =KORISNICI!G173 -> / | H164: =KORISNICI!H173 -> / | I164: =KORISNICI!I173 -> /
A165: 9.3.1 | C165: A | D165: horizontalni 3/4" | E165: Horizontal 3/4" | F165: kom/pcs
A166: 9.3.2 | C166: B | D166: horizontalni 1" | E166: Horizontal 1" | F166: kom/pcs
A167: 9.3.3 | C167: C | D167: horizontalni 5/4" | E167: Horizontal 5/4" | F167: kom/pcs
A168: 9.4 | B168: V | C168: 4 | D168: Ravni propusni ventil sa ogrankom za pražnjenje | E168: Skip straight valve with a branch drain | F168: / | G168: =KORISNICI!G177 -> / | H168: =KORISNICI!H177 -> / | I168: =KORISNICI!I177 -> /
A169: 9.4.1 | C169: A | D169: d25 (s min. 2,3) - 3/4" | E169: d25 (s min. 2,3) - 3/4" | F169: kom/pcs
A170: 9.4.2 | C170: B | D170: d32 (s min. 3,0) - 1" | E170: d32 (s min. 3,0) - 1" | F170: kom/pcs
A171: 9.5 | B171: V | C171: 5 | D171: Propusni ventil za uzidanje sa kapom | E171: Gate valve for the wall with cap | F171: / | G171: =KORISNICI!G180 -> / | H171: =KORISNICI!H180 -> / | I171: =KORISNICI!I180 -> /
A172: 9.5.1 | C172: A | D172: d20 (s min. 3,4) - 1/2" | E172: d20 (s min. 3,4) - 1/2" | F172: kom/pcs
A173: 9.5.2 | C173: B | D173: d25 (s min. 4,2) - 3/4" | E173: d25 (s min. 4,2) - 3/4" | F173: kom/pcs
A174: 9.5.3 | C174: C | D174: d32 (s min. 3,0) - 1" | E174: d32 (s min. 3,0) - 1" | F174: kom/pcs
A175: 9.6 | B175: V | C175: 6 | D175: Ugaoni "EK" sa kapom | E175: Angle valve "EK" with cap | F175: / | G175: =KORISNICI!G184 -> / | H175: =KORISNICI!H184 -> / | I175: =KORISNICI!I184 -> /
A176: 9.6.1 | C176: A | D176: d20 (s min. 3,4) - 1/2" | E176: d20 (s min. 3,4) - 1/2" | F176: kom/pcs
A177: 9.7 | B177: V | C177: 7 | D177: Termička izolacija vodovodnih cevi -tipa plamaflex ISO ili sl. | E177: Thermal insulation of water pipes-type PLAMAFLEX ISO etc.. | F177: / | G177: =KORISNICI!G186 -> / | H177: =KORISNICI!H186 -> / | I177: =KORISNICI!I186 -> /
A178: 9.7.1 | C178: B | D178: d20 (22/9) - 1/2" | E178: d20 (22/9) - 1/2" | F178: m1
A179: 9.7.2 | C179: C | D179: d25 (25/9) - 3/4" | E179: d25 (25/9) - 3/4" | F179: m1
A180: 9.7.3 | C180: D | D180: d32 (35/9)- 1" | E180: d32 (35/9)- 1" | F180: m1
D181: Kanalizacija | E181: SEWAGE
A182: 9.8 | B182: V | C182: 8 | D182: PVC kanalizacione cevi SDR 41 / SN4 / PN5 za spoljni razvod, kućna i ulična kanalizacija | E182: PVC sewer pipe SDR 41 / CH4 / PN5 for external distribution, household and street sewage | F182: / | G182: =KORISNICI!G191 -> / | H182: =KORISNICI!H191 -> / | I182: =KORISNICI!I191 -> /
A183: 9.8.1 | C183: A | D183: d110 (s min. 3,2) dužina 6,0m | E183: d110 (s min. 3,2) length 6,0m | F183: kom/pcs
A184: 9.8.2 | C184: B | D184: d160 (s min. 4,0) dužina 6,0m | E184: d160 (s min. 4,0) length 6,0m | F184: kom/pcs
A185: 9.9 | B185: V | C185: 9 | D185: Plastične PP cevi SDR 51 / SN2 / PN4 za unutrašnji (kućni) razvod, kućna kanalizacija | E185: Plastic PP pipes SDR 51 / SN2 / PN4 for internal (home) distribution, household sewage | F185: / | G185: =KORISNICI!G194 -> / | H185: =KORISNICI!H194 -> / | I185: =KORISNICI!I194 -> /
A186: 9.9.1 | C186: A | D186: d50 (s min. 1,8) dužina 3,0m | E186: d50 (s min. 1,8) length 3,0m | F186: kom/pcs
A187: 9.9.2 | C187: B | D187: d75 (s min. 1,9) dužina 3,0m | E187: d75 (s min. 1,9) length 3,0m | F187: kom/pcs
A188: 9.9.3 | C188: C | D188: d110 (s min. 2,7) dužina 3,0m | E188: d110 (s min. 2,7) length 3,0m | F188: kom/pcs
A189: 9.10 | B189: V | C189: 10 | D189: Plitki PE podni slivnik d50 sa horizontalnim odvodom dimenzija 150x150mm | E189: Shallow PE floor drain with horizontal outlet d50 size 150x150mm | F189: kom/pcs
A190: 9.11 | B190: V | C190: 11 | D190: Zidni sifoni sa odvodnom mesinganom cevi d32 (mašina za pranje veša i sudova) | E190: Wall siphon with drainage brass tubes d32 (washing machines, dishwashers) | F190: kom/pcs
D191: Oprema u kupatilu | E191: BATHROOM EQUPIMENT
A192: 9.12 | B192: V | C192: 12 | D192: WC šolja od keramike I klase | E192: Ceramic toilet bowl class 1 | F192: kom/pcs
A193: 9.13 | B193: V | C193: 13 | D193: Niskomontažni plastični predzidni vodokotlić za nisku montažu iznad wc šolje sa plovkom i svim potrebnim delovima za funkcionisanje vodokotlića | E193: Low mounting plastic-wall toilet tank for low installation above the toilet bowl float and all the parts required for the operation of flushing | F193: kom/pcs
A194: 9.14 | B194: V | C194: 14 | D194: Umivaonikom sa stubom od keramike I klase | E194: Washbasin with ceramic pillar class 1 | F194: kom/pcs
A195: 9.15 | B195: V | C195: 15 | D195: Pravougaona akrilna tuš kada dimenzija 90x90cm sa odlivnim ventilom | E195: Rectangular acrylic shower size 90x90cm with discharge valve | F195: kom/pcs
A196: 9.16 | B196: V | C196: 16 | D196: Električni akumulacioni bojler 50l vertikalni grejač 2 kW, napon 230V, kazan izrađen od emajliranog lima, sa pratećim materijalom za ugradnju | E196: Electric storage water heater 50l vertical heater 2 kW, 230V, caldron made ​​of enameled steel, with supporting material for installation | F196: kom/pcs
A197: 9.17 | B197: V | C197: 17 | D197: Ogledalo sa etažerom (iznad umivaonika) četvrtasto, min. dimenzija 80x60cm | E197: Mirror with shelf above wash basin square, min. 80x60cm | F197: kom/pcs
A198: 9.18 | B198: V | C198: 18 | D198: Baterije (slavine) hromirane baterije za hladnu i toplu vodu | E198: Lever chrome lever for cold and hot water | F198: / | G198: =KORISNICI!G207 -> / | H198: =KORISNICI!H207 -> / | I198: =KORISNICI!I207 -> /
A199: 9.18.1 | C199: A | D199: za umivaonik jednoručna stojeća | E199: For washbasin single lever basin standing | F199: kom/pcs
A200: 9.18.2 | C200: B | D200: za tuš kadu (sa tuš ručicom i tuš crevom) jednoručna sa poniklovanim savitljivim crevom | E200: For shower bath (with shower head and shower hose) Single lever with nickel hoses | F200: kom/pcs
A201: 9.18.3 | C201: C | D201: za mašinu za veš i sudove, holender slavina DN20/15, s pripadajućom opremom za ugradnju | E201: for washing machine and dishwasher, union DN20/15 taps, and all the equipment for installation | F201: kom/pcs
D202: Oprema u kuhinji | E202: KITCHEN EQUIPMENT
A203: 9.19 | B203: V | C203: 19 | D203: Korito sudopere od "Inox "-a (dvodelno) (izrađeno od plemenitog nerđajućeg čelika) orjenacione dimenzije: 780 x 435 x 150 mm | E203: kitchen sink "Inox" two-part (made of stainless steel) approx. dim: 780 x 435 x 150 mm | F203: kom/pcs
A204: 9.20 | B204: V | C204: 20 | D204: Električni akumulacioni bojler 5l za ugradnju iznad sudopere, vertikalni grejač 2 kW, napon 230V, kazan izrađen od plastike sa pratećim materijalom za ugradnju | E204: Electric storage water heater 5l Fitting over the sink, vertical heater 2 kW, 230V, caldron made ​​of plastic with the materials for installation | F204: kom/pcs
A205: 9.21 | B205: V | C205: 21 | D205: Baterija za sudoperu jednoručna stojeća hromirana baterija za hladnu i toplu vodu | E205: Sink-standing single lever chrome mixer for hot and cold water | F205: kom/pcs
A207: 10 | B207: E | D207: ELEKTRO MATERIJAL I OPREMA | E207: Electrical materials and equipment
D208: Kablovi i kablovski pribor | E208: Electrical cables and cable accessories
A209: 10.1 | B209: E | C209: 1 | D209: Napojni kablovi | E209: Power cables | F209: / | G209: =KORISNICI!G218 -> / | H209: =KORISNICI!H218 -> / | I209: =KORISNICI!I218 -> /
A210: 10.1.1 | C210: A | D210: X00-A 4x16 mm2 | E210: X00-A 4x16 mm2 | F210: m
A211: 10.1.2 | C211: B | D211: PP00-Y 5x6 mm2 | E211: PP00-Y 5x6 mm2 | F211: m
... 46 more rows
